{"text_format":"3","workbook":"xlsx","n_sheets":14,"sheets":["Свод","По направлениям","2.1 (3360)","2.2 (1008)","2.3 (2731)","2.4 (2354)","2.5 (669)","2.6 (1047)","2.7 (1504)","2.8 (577)","2.9 (144)","2.10 (1056)","2.11 (766)","Иное"],"read":"whole","date_system":"1900"}

{"sheet":"Свод","index":0,"n_rows":5,"n_cols":3,"rows_kept":5}
["Кандидаты прошедшие анкетирование",15216]
["Кандидатов, не приступивших к анкетированию (основу выбрали, на вопросы анкеты не отвечали)",3304]
[null,{"$f":"SUM(B1:B2)","v":18520},"(на 2.10.19)"]
[]
["Выбрали внебюджетную основу обучения",2546]

{"sheet":"По направлениям","index":1,"n_rows":13,"n_cols":3,"rows_kept":13}
["№","Приоритетное направление","Кол-во"]
["2.1.","Программа ПК по совершенствованию предметной и методической компетентности учителей (педагогов).",3360]
["2.2.","Программа ПК по совершенствованию психолого-педагогической и коммуникативной компетентности учителей (педагогов);",1008]
["2.3.","Программа ПК, в которую включены модули, одновременно отражающие ключевые направления профессионального развития учителя (педагога): предметное, методическое, психолого-педагогическое, коммуникативное;",2731]
["2.4.","Программа ПК, которая формирует у учителя(педагога) навыки развития у обучающихся метапредметных умений (например, креативность, критическое мышление, умение решать проблемы и др.);",2354]
["2.5.","Программа ПК, которая формирует у учителя (педагога) навыки работы в полилингвальной образовательной среде;",669]
["2.6.","Программа ПК, которая формирует у учителя (педагога) навыки в области цифровых технологий применительно к работе учителя (педагога);",1047]
["2.7.","Программа ПК, которая формирует у учителя (педагога) навыки обучения детей с ограниченными возможностями здоровья (ОВЗ);",1504]
["2.8.","Программа ПК, которая развивает у учителя (педагога) навыки оценивания обучающихся;",577]
["2.9.","Программа ПК по подготовке тьюторов организаций ДОО, ДОД, СПО в области цифровых технологий;",144]
["2.10.","Дистанционная программа ПК для отдельных категорий участников: старших воспитателей, воспитателей ДОО, учителей математики, русского языка, родного языка, обществознания, географии, педагогов по обучению детей с ограниченными возможностями здоровья, педагогов ДОД;",1056]
["2.11.","Иное.",766]
[null,"Всего",15216]

{"sheet":"2.1 (3360)","index":2,"n_rows":173,"n_cols":8,"rows_kept":173,"merged":[[61,0,61,7],[89,0,89,7],[112,0,112,7],[125,0,125,5],[151,0,151,7]]}
["2.1 Программа ПК по совершенствованию предметной компетентности учителей (педагогов)"]
["№","Предмет","Всего","Высшая квалификационная категория","I квалификационная категория","II квалификационная категория","Без категории","N"]
[1,"Директор (108 час.)",{"$f":"SUM(D3:H3)","v":36},7,19,null,5,5]
[2,"Заместитель директора (108 час.)",{"$f":"SUM(D4:H4)","v":47},8,22,1,11,5]
[3,"Заместитель",24,5,13,null,2,4]
[4,"Заведующий",0]
[5,"Заведующий отделением",0]
[6,"Заведующий филиалом",0]
[7,"Педагог-библиотекарь (64 час.)",12,null,1,null,5,6]
[8,"Педагог-организатор (64 час.)",6,null,4,null,1,1]
[9,"Педагог-психолог (64 час.)",4,1,1,null,2]
[10,"Педагог доп. образования",7,null,5,null,2]
[11,"Старший педагог дополнительного образования",0]
[12,"Социальный педагог (64 час.)",0]
[13,"Воспитатель",17,null,8,null,6,3]
[14,"Старший воспитатель",0]
[15,"Специалист (64 час.)",0]
[16,"Сотрудник",0]
[17,"Мастер производственного обучения",0]
[18,"Методист",0]
[19,"Преподаватель",0]
[20,"Тьютор",0]
[21,"Учитель-дефектолог (96 час.)",0]
[22,"Учитель-дефектолог (олигофренопедагог)",1,null,1]
[23,"Учитель-дефектолог (сурдопедагог)",0]
[24,"Учитель-дефектолог (тифлопедагог)",1,{"$nulls":3},1]
[25,"Учитель-логопед (64 час.)",0]
[26,"Учитель (предмет не указан)",412,50,143,5,104,110]
[27,"Начальные классы (64 час.)",326,72,218,null,16,20]
[28,"Рус.яз. и лит-ра (96 час.)",159,53,85,2,9,10]
[29,"Тат.яз и лит (96 час.)",216,56,149,1,3,7]
[30,"Марийский язык 196 час.)",0]
[31,"Чувашский язык (96 час.)",0]
[32,"Удм. язык (96 час.)",0]
[{"$f":"A34+1","v":33},"Родной язык и литература",13,6,7]
[{"$f":"A35+1","v":34},"Иностранный язык",141,21,87,2,14,17]
[35,"Анг.яз. (96 час.)",0]
[36,"Франц.яз. (96 час.)",0]
[37,"Немец.яз. (96 час.)",0]
[38,"Математика (96 час.)",149,23,104,null,11,11]
[39,"Информатика и ИКТ (96 час.)",26,7,17,null,2]
[40,"История и обществознание (96 час.)",107,24,61,1,13,8]
[41,"География (96 час.)",56,8,41,null,5,2]
[42,"Физика (96 час.)",42,5,26,null,5,6]
[43,"Химия (96 час.)",27,9,13,1,1,3]
[44,"Биология (96 час.)",67,26,35,null,2,4]
[45,"ИЗО (96 час.)",0]
[46,"Музыка (96 час.)",0]
[47,"Искусство",47,16,27,null,1,3]
[48,"Искусство танца",2,2]
[49,"Технология (96 час.)",52,9,37,null,1,5]
[50,"ОБЖ (96 час.)",18,4,13,null,1]
[51,"Преподаватель-организатор основ безопасности жизнедеятельности",14,7,6,null,1]
[52,"Физ-ра (96 час.)",126,40,73,1,4,8]
[53,"Инструктор по физической культуре",1,{"$nulls":3},1]
[54,"Тренер-преподаватель",0]
[55,"ОРКСЭ (96 час.)",4,null,1,null,2,1]
[56,"Классный час",1,null,1]
[57,"Музыкальный руководитель",0]
[58,"N",57,9,26,null,10,12]
[null,null,{"$f":"SUM(C3:C60)","v":{"v":2218,"d":"2,218"}}]
["ДОО"]
["№","Предмет","Всего","Высшая квалификационная категория","I квалификационная категория","II квалификационная категория","Без категории","N"]
[1,"Заведующий  (72 час.)",{"$f":"SUM(D64:H64)","v":30},5,10,2,5,8]
[2,"Директор ",{"$f":"SUM(D65:H65)","v":0}]
[3,"Заместитель",1,null,1]
[4,"Заместитель директора",0]
[5,"Заместитель заведующего",1,{"$nulls":3},1]
[6,"Воспитатель (64 час.)",503,55,312,3,74,59]
[7,"Дошкольник",1,null,1]
[8,"Инструктор по физ.культуре (64 час.)",25,1,12,null,8,4]
[9,"Тренер-преподаватель",1,null,1]
[10,"Заведующий методическим кабинетом",0]
[11,"Методист (64 час.)",2,1,1]
[12,"Муз. руководитель  (64 час.)",42,10,19,null,4,9]
[13,"Педагог дополнительного образования",0]
[14,"Педагог-организатор",0]
[15,"Педагог-психолог (64 час.)",2,1,null,null,1]
[16,"Преподаватель",0]
[17,"Специалист",1,{"$nulls":3},1]
[18,"Старший специалист",0]
[19,"Старший воспитатель (64 час.)",33,7,23,null,null,3]
[20,"Учитель",0]
[21,"Учитель-дефектолог",0]
[22,"Учитель-дефектолог (олигофренопедагог)",0]
[23,"Учитель-дефектолог (тифлопедагог)",0]
[24,"Учитель-логопед (64 час.)",11,3,5,null,3]
[25,"N",3,{"$nulls":3},2,1]
[null,null,{"$f":"SUM(C64:C88)","v":656}]
["ДОД"]
["№","Предмет","Всего","Высшая квалификационная категория","I квалификационная категория","II квалификационная категория","Без категории","N"]
[1,"Директор (108 час.)",{"$f":"SUM(D92:H92)","v":3},null,1,null,1,1]
[2,"Заместитель (64 час.)",{"$f":"SUM(D93:H93)","v":3},1,{"$nulls":3},2]
[3,"Заместитель директора",6,null,1,null,3,2]
[4,"Заведующий (64 час.)",1,1]
[5,"Заведующий отделением",4,null,1,null,1,2]
[6,"Заведующий структурного подразделения",2,{"$nulls":4},2]
[7,"Заведующий методическим кабинетом",0]
[8,"Концертмейстер (64 час.)",1,1]
[9,"Методист (64 час.)",18,null,7,null,7,4]
[10,"Педагог доп.образования (64 час.)",92,17,38,2,15,20]
[11,"Педагог-организатор (64 час.)",2,{"$nulls":4},2]
[12,"Педагог-психолог (64 час.)",0]
[13,"Преподаватель (64 час.)",20,8,9,1,1,1]
[14,"Преподаватель ДМШ (64 час.)",3,null,2,null,null,1]
[15,"Преподаватель ДХШ (64 час.)",0]
[16,"Преподаватель ДШИ",4,2,1,null,null,1]
[17,"Учитель",1,{"$nulls":4},1]
[18,"Тренер-преподаватель",0]
[19,"N",0]
[20,"Воспитатель",0]
[null,null,{"$f":"SUM(C92:C111)","v":160}]
["Районные учреждения образования",null,null,"ИМЦ, РОО"]
["№","Предмет","Всего","Высшая квалификационная категория","I квалификационная категория","II квалификационная категория","Без категории","N"]
[2,"Заместитель ",{"$f":"SUM(D115:H115)","v":2},1,{"$nulls":3},1]
[null,"Заместитель начальника",{"$f":"SUM(D116:H116)","v":0}]
[null,"Начальник",0]
[null,"Начальник отдела",0]
[3,"Педагог-психолог ",0]
[4,"Методист ",16,4,6,null,3,3]
[5,"Старший методист",1,1]
[6,"Специалист ",0]
[7,"Ведущий специалист ",0]
[null,"N",0]
[null,null,{"$f":"SUM(C115:C124)","v":19}]
["ПО"]
["№","Предмет","Всего","Высшая квалификационная категория","I квалификационная категория","II квалификационная категория","Без категории","N"]
[1,"Воспитатель (64 час.)",{"$f":"SUM(D128:H128)","v":2},{"$nulls":3},1,1]
[3,"Директор (108 час.)",{"$f":"SUM(D129:H129)","v":2},1,{"$nulls":3},1]
[4,"Заведующий (96 час.)",1,{"$nulls":3},1]
[null,"Заведующий методическим кабинетом",0]
[6,"Заведующий отделением (64 час.)",6,3,null,null,2,1]
[8,"Заведующий филиалом",1,{"$nulls":4},1]
[9,"Заместитель",4,2,{"$nulls":3},2]
[10,"Заместитель директора ",8,1,1,null,3,3]
[11,"Музыкальный руководитель",0]
[12,"Мастер производ.обучения ",28,5,5,null,7,11]
[13,"Методист ",4,1,null,null,3]
[16,"Педагог доп.образования (64 час.)",1,{"$nulls":3},1]
[17,"Педагог-библиотекарь (64 час.)",0]
[18,"Педагог-организатор (64 час.)",0]
[19,"Педагог-психолог (64 час.)",0]
[21,"Преподаватель (96 час.)",237,77,85,2,45,28]
[23,"Общепроф. дисциплины (96 час.)",0]
[null,"Учитель",1,{"$nulls":4},1]
[24,"Социальный педагог (64 час.)",0]
[25,"Старший мастер",2,null,1,null,null,1]
[28,"Руководитель физического воспитания",1,null,1]
[30,"N",{"$f":"SUM(D149:H149)","v":6},null,1,null,4,1]
[31,"Концертмейстер",{"$f":"SUM(D150:H150)","v":0}]
[null,null,{"$f":"SUM(C128:C150)","v":304}]
["Прочие\n (детские дома, центры психолого-медико-социального сопровождения, межшкольный учебный комбинат, вечерняя школа закрытого типа)"]
["№","Предмет","Всего","Высшая квалификационная категория","I квалификационная категория","II квалификационная категория","Без категории","N"]
[1,"Воспитатель (64 час.)",{"$f":"SUM(D154:H154)","v":0}]
[2,"Директор (108 час.)",{"$f":"SUM(D155:H155)","v":0}]
[3,"Замиститель",0]
[4,"Инструктор по туду",1,null,1]
[5,"Инструктор по физической культуре",0]
[6,"Музыкальный руководитель",0]
[7,"Педагог доп.образования (64 час.)",0]
[8,"Педагог-организатор",0]
[9,"Педагог-библиотекарь (96 час.)",0]
[10,"Педагог-психолог (64 час.)",0]
[11,"Преподаватель",0]
[12,"Социальный педагог (72 час.)",0]
[13,"Специалист",0]
[14,"Учитель",0]
[15,"Учитель-дефектолог (196 час.)",0]
[16,"Учитель-логопед (64 час.)",0]
[17,"Методист",2,null,1,null,1]
[18,"N",0]
[null,null,3]
[null,null,3360]

{"sheet":"2.2 (1008)","index":3,"n_rows":169,"n_cols":8,"rows_kept":169,"merged":[[0,0,0,7],[59,0,59,7],[87,0,87,7],[110,0,110,7],[123,0,123,5],[148,0,148,7]]}
["2.2. Программа ПК по совершенствованию психолого-педагогической и коммуникативной компетентности учителей (педагогов)"]
["№","Предмет","Всего","Высшая квалификационная категория","I квалификационная категория","II квалификационная категория","Без категории","N"]
[1,"Директор (108 час.)",{"$f":"SUM(D3:H3)","v":2},null,2]
[2,"Заместитель директора (108 час.)",9,3,1,null,2,3]
[3,"Заместитель",7,null,7]
[4,"Заведующий",0]
[5,"Заведующий отделением",0]
[6,"Заведующий филиалом",0]
[7,"Педагог-библиотекарь (64 час.)",11,null,3,null,3,5]
[8,"Педагог-организатор (64 час.)",13,2,4,null,5,2]
[9,"Педагог-психолог (64 час.)",20,3,6,null,6,5]
[10,"Педагог доп. образования",11,2,6,null,2,1]
[11,"Старший педагог дополнительного образования",0]
[12,"Социальный педагог (64 час.)",3,1,{"$nulls":3},2]
[13,"Воспитатель",20,1,10,null,3,6]
[14,"Старший воспитатель",0]
[15,"Специалист (64 час.)",0]
[16,"Сотрудник",0]
[17,"Мастер производственного обучения",0]
[18,"Методист",0]
[19,"Преподаватель",0]
[20,"Тьютор",0]
[21,"Учитель-дефектолог (96 час.)",0]
[22,"Учитель-дефектолог (олигофренопедагог)",0]
[23,"Учитель-дефектолог (сурдопедагог)",1,null,1]
[24,"Учитель-дефектолог (тифлопедагог)",0]
[25,"Учитель-логопед (64 час.)",0]
[26,"Учитель (предмет не указан)",59,1,20,null,20,18]
[27,"Начальные классы (64 час.)",55,5,36,null,10,4]
[28,"Рус.яз. и лит-ра (96 час.)",14,5,6,1,1,1]
[29,"Тат.яз и лит (96 час.)",30,8,20,1,null,1]
[30,"Марийский язык 196 час.)",0]
[31,"Чувашский язык (96 час.)",0]
[32,"Удм. язык (96 час.)",0]
[{"$f":"A34+1","v":33},"Иностранный язык",15,5,2,1,5,2]
[{"$f":"A35+1","v":34},"Анг.яз. (96 час.)",0]
[35,"Франц.яз. (96 час.)",0]
[36,"Немец.яз. (96 час.)",0]
[37,"Математика (96 час.)",4,1,1,null,2]
[38,"Информатика и ИКТ (96 час.)",1,null,1]
[39,"История и обществознание (96 час.)",5,1,2,null,1,1]
[40,"География (96 час.)",2,null,1,null,1]
[41,"Физика (96 час.)",1,null,null,1]
[42,"Химия (96 час.)",0]
[43,"Биология (96 час.)",2,null,1,null,1]
[44,"Искусство",8,2,4,null,1,1]
[45,"ИЗО (96 час.)",0]
[46,"Музыка (96 час.)",0]
[47,"Технология (96 час.)",7,null,5,null,1,1]
[48,"ОБЖ (96 час.)",4,1,2,null,null,1]
[49,"Преподаватель-организатор основ безопасности жизнедеятельности",1,null,1]
[50,"Физ-ра (96 час.)",14,3,5,null,4,2]
[51,"Инструктор по физической культуре",0]
[52,"Тренер-преподаватель",0]
[53,"ОРКСЭ (96 час.)",0]
[54,"Классный час",0]
[55,"Музыкальный руководитель",0]
[56,"N",22,3,10,null,7,2]
[null,null,{"$f":"SUM(C3:C58)","v":341}]
["ДОО"]
["№","Предмет","Всего","Высшая квалификационная категория","I квалификационная категория","II квалификационная категория","Без категории","N"]
[1,"Заведующий  (72 час.)",{"$f":"SUM(D62:H62)","v":25},1,8,null,8,8]
[2,"Директор ",{"$f":"SUM(D63:H63)","v":0}]
[3,"Заместитель",1,{"$nulls":3},1]
[4,"Заместитель директора",0]
[5,"Заместитель заведующего",1,null,1]
[6,"Воспитатель (64 час.)",375,36,233,null,64,42]
[7,"Дошкольник",0]
[8,"Инструктор по физ.культуре (64 час.)",3,null,2,null,1]
[9,"Тренер-преподаватель",0]
[10,"Заведующий методическим кабинетом",0]
[11,"Методист (64 час.)",2,2]
[12,"Муз. руководитель  (64 час.)",20,4,11,1,3,1]
[13,"Педагог дополнительного образования",0]
[14,"Педагог-организатор",0]
[15,"Педагог-психолог (64 час.)",28,3,14,null,8,3]
[16,"Преподаватель",0]
[17,"Специалист",1,null,1]
[18,"Старший специалист",0]
[19,"Старший воспитатель (64 час.)",7,4,3]
[20,"Учитель",0]
[21,"Учитель-дефектолог",0]
[22,"Учитель-дефектолог (олигофренопедагог)",0]
[23,"Учитель-дефектолог (тифлопедагог)",0]
[24,"Учитель-логопед (64 час.)",9,3,5,null,null,1]
[25,"N",8,1,3,1,3]
[null,null,{"$f":"SUM(C62:C86)","v":480}]
["ДОД"]
["№","Предмет","Всего","Высшая квалификационная категория","I квалификационная категория","II квалификационная категория","Без категории","N"]
[1,"Директор (108 час.)",{"$f":"SUM(D90:H90)","v":0}]
[2,"Заместитель (64 час.)",{"$f":"SUM(D91:H91)","v":1},null,1]
[3,"Заместитель директора",1,{"$nulls":4},1]
[4,"Заведующий (64 час.)",4,{"$nulls":3},2,2]
[5,"Заведующий отделением",0]
[6,"Заведующий структурного подразделения",0]
[7,"Заведующий методическим кабинетом",0]
[8,"Концертмейстер (64 час.)",7,2,3,null,1,1]
[9,"Методист (64 час.)",5,1,2,null,1,1]
[10,"Педагог доп.образования (64 час.)",34,7,12,2,5,8]
[11,"Педагог-организатор (64 час.)",2,null,1,null,null,1]
[12,"Педагог-психолог (64 час.)",1,{"$nulls":3},1]
[13,"Преподаватель (64 час.)",4,1,3]
[14,"Преподаватель ДМШ (64 час.)",3,null,2,null,null,1]
[15,"Преподаватель ДХШ (64 час.)",0]
[16,"Преподаватель ДШИ",20,9,7,null,2,2]
[17,"Учитель",0]
[18,"Тренер-преподаватель",0]
[19,"Социальный педагог",1,null,1]
[20,"N",0]
[null,null,{"$f":"SUM(C90:C109)","v":83}]
["Районные учреждения образования",null,null,"ИМЦ, РОО"]
["№","Предмет","Всего","Высшая квалификационная категория","I квалификационная категория","II квалификационная категория","Без категории","N"]
[2,"Заместитель "]
[null,"Заместитель начальника"]
[null,"Начальник"]
[null,"Начальник отдела"]
[3,"Педагог-психолог "]
[4,"Методист ",{"$f":"SUM(D118:H118)","v":2},2]
[5,"Старший методист"]
[6,"Специалист "]
[7,"Ведущий специалист "]
[null,"N"]
[null,null,2]
["ПО"]
["№","Предмет","Всего","Высшая квалификационная категория","I квалификационная категория","II квалификационная категория","Без категории","N"]
[1,"Воспитатель (64 час.)",{"$f":"SUM(D126:H126)","v":3},null,2,null,1]
[3,"Директор (108 час.)",{"$f":"SUM(D127:H127)","v":3},1,1,null,null,1]
[4,"Заведующий (96 час.)",0]
[null,"Заведующий методическим кабинетом",0]
[6,"Заведующий отделением (64 час.)",1,{"$nulls":4},1]
[8,"Заведующий филиалом",0]
[9,"Заместитель",4,2,{"$nulls":3},2]
[10,"Заместитель директора ",5,1,null,null,1,3]
[11,"Музыкальный руководитель",0]
[12,"Мастер производ.обучения ",5,1,3,null,null,1]
[13,"Методист ",0]
[16,"Педагог доп.образования (64 час.)",1,{"$nulls":3},1]
[17,"Педагог-библиотекарь (64 час.)",0]
[18,"Педагог-организатор (64 час.)",0]
[19,"Педагог-психолог (64 час.)",1,null,1]
[21,"Преподаватель (96 час.)",0]
[23,"Общепроф. дисциплины (96 час.)",56,16,21,null,8,11]
[null,"Учитель",0]
[24,"Социальный педагог (64 час.)",0]
[25,"Старший мастер",0]
[28,"Преподаватель-организатор основ безопасности жизнедеятельности",1,{"$nulls":3},1]
[30,"N",1,{"$nulls":3},1]
[null,null,{"$f":"SUM(C126:C147)","v":81}]
["Прочие\n (детские дома, центры психолого-медико-социального сопровождения, межшкольный учебный комбинат, вечерняя школа закрытого типа)"]
["№","Предмет","Всего","Высшая квалификационная категория","I квалификационная категория","II квалификационная категория","Без категории","N"]
[1,"Воспитатель (64 час.)",8,null,7,null,1]
[2,"Директор (108 час.)",2,1,null,null,1]
[3,"Замиститель"]
[4,"Инструктор по туду",2,null,1,null,1]
[5,"Инструктор по физической культуре",1,{"$nulls":3},1]
[6,"Музыкальный руководитель"]
[7,"Педагог доп.образования (64 час.)",4,null,1,null,2,1]
[8,"Педагог-организатор"]
[9,"Педагог-библиотекарь (96 час.)"]
[10,"Педагог-психолог (64 час.)"]
[11,"Преподаватель"]
[12,"Социальный педагог (72 час.)",3,{"$nulls":3},1,2]
[13,"Специалист"]
[14,"Учитель"]
[15,"Учитель-дефектолог (196 час.)"]
[16,"Учитель-логопед (64 час.)",1,{"$nulls":4},1]
[17,"N"]
[null,null,21]
[null,null,1008]

{"sheet":"2.3 (2731)","index":4,"n_rows":172,"n_cols":8,"rows_kept":172,"merged":[[0,0,0,7],[60,0,60,7],[88,0,88,7],[110,0,110,7],[123,0,123,5],[151,0,151,7]]}
["2.3 Программа ПК, в которую включены модули, одновременно отражающие ключевые направления профессионального развития учителя (педагога): предметное, методическое, психолого-педагогическое, коммуникативное"]
["№","Предмет","Всего","Высшая квалификационная категория","I квалификационная категория","II квалификационная категория","Без категории","N"]
[1,"Директор (108 час.)",{"$f":"SUM(D3:H3)","v":44},6,26,null,6,6]
[2,"Заместитель директора (108 час.)",57,5,20,null,20,12]
[3,"Заместитель",39,6,24,null,4,5]
[4,"Заведующий",0]
[5,"Заведующий отделением",0]
[6,"Заведующий филиалом",0]
[7,"Педагог-библиотекарь (64 час.)",13,null,5,null,2,6]
[8,"Педагог-организатор (64 час.)",7,1,3,null,1,2]
[9,"Педагог-психолог (64 час.)",8,1,3,null,3,1]
[10,"Педагог доп. образования",9,2,4,1,null,2]
[11,"Старший педагог дополнительного образования",0]
[12,"Социальный педагог (64 час.)",1,null,1]
[13,"Воспитатель",29,null,17,2,6,4]
[14,"Старший воспитатель",0]
[15,"Специалист (64 час.)",0]
[16,"Сотрудник",0]
[17,"Мастер производственного обучения",0]
[18,"Методист",0]
[19,"Преподаватель",0]
[20,"Тьютор",0]
[21,"Учитель-дефектолог (96 час.)",0]
[22,"Учитель-дефектолог (олигофренопедагог)",0]
[23,"Учитель-дефектолог (сурдопедагог)",0]
[24,"Учитель-дефектолог (тифлопедагог)",0]
[25,"Учитель-логопед (64 час.)",3,1,1,null,null,1]
[26,"Учитель (предмет не указан)",219,30,73,2,67,47]
[27,"Начальные классы (64 час.)",193,31,126,4,21,11]
[28,"Рус.яз. и лит-ра (96 час.)",89,35,41,null,5,8]
[29,"Тат.яз и лит (96 час.)",112,17,81,null,2,12]
[30,"Марийский язык 196 час.)",0]
[31,"Чувашский язык (96 час.)",0]
[32,"Удм. язык (96 час.)",0]
[{"$f":"A34+1","v":33},"Родной язык и литература",8,3,4,null,1]
[{"$f":"A35+1","v":34},"Иностранный язык",93,11,51,null,14,17]
[35,"Анг.яз. (96 час.)",0]
[36,"Франц.яз. (96 час.)",0]
[37,"Немец.яз. (96 час.)",0]
[38,"Математика (96 час.)",68,9,47,2,4,6]
[39,"Информатика и ИКТ (96 час.)",17,5,11,null,null,1]
[40,"История и обществознание (96 час.)",51,12,33,2,2,2]
[41,"География (96 час.)",18,2,8,null,5,3]
[42,"Физика (96 час.)",17,5,11,null,null,1]
[43,"Химия (96 час.)",16,6,8,null,2]
[44,"Биология (96 час.)",31,9,19,null,1,2]
[45,"Искусство",19,5,9,null,2,3]
[46,"ИЗО (96 час.)",0]
[47,"Музыка (96 час.)",0]
[48,"Технология (96 час.)",27,9,16,null,null,2]
[49,"ОБЖ (96 час.)",4,1,null,null,1,2]
[50,"Преподаватель-организатор основ безопасности жизнедеятельности",9,1,5,null,1,2]
[51,"Физ-ра (96 час.)",46,8,31,1,3,3]
[52,"Инструктор по физической культуре",0]
[53,"Тренер-преподаватель",0]
[54,"ОРКСЭ (96 час.)",1,null,1]
[55,"Классный час",0]
[56,"Музыкальный руководитель",1,null,1]
[57,"N",69,12,35,2,8,12]
[null,null,{"$f":"SUM(C3:C59)","v":{"v":1318,"d":"1,318"}}]
["ДОО"]
["№","Предмет","Всего","Высшая квалификационная категория","I квалификационная категория","II квалификационная категория","Без категории","N"]
[1,"Заведующий  (72 час.)",{"$f":"SUM(D63:H63)","v":72},8,16,1,28,19]
[2,"Директор ",{"$f":"SUM(D64:H64)","v":2},null,1,null,null,1]
[3,"Заместитель",2,null,1,null,null,1]
[4,"Заместитель директора",0]
[5,"Заместитель заведующего",3,1,1,null,1]
[6,"Воспитатель (64 час.)",692,55,427,2,110,98]
[7,"Дошкольник",0]
[8,"Инструктор по физ.культуре (64 час.)",21,5,8,null,5,3]
[9,"Тренер-преподаватель",1,{"$nulls":4},1]
[10,"Заведующий методическим кабинетом",0]
[11,"Методист (64 час.)",3,2,1]
[12,"Муз. руководитель  (64 час.)",76,26,34,null,7,9]
[13,"Педагог дополнительного образования",0]
[14,"Педагог-организатор",0]
[15,"Педагог-психолог (64 час.)",13,1,7,null,4,1]
[16,"Преподаватель",0]
[17,"Специалист",2,1,{"$nulls":3},1]
[18,"Старший специалист",0]
[19,"Старший воспитатель (64 час.)",38,15,21,null,1,1]
[20,"Учитель",2,null,2]
[21,"Учитель-дефектолог",3,1,2]
[22,"Учитель-дефектолог (олигофренопедагог)",0]
[23,"Учитель-дефектолог (тифлопедагог)",0]
[24,"Учитель-логопед (64 час.)",19,3,12,null,2,2]
[25,"N",2,null,1,1]
[null,null,{"$f":"SUM(C63:C87)","v":951}]
["ДОД"]
["№","Предмет","Всего","Высшая квалификационная категория","I квалификационная категория","II квалификационная категория","Без категории","N"]
[1,"Директор (108 час.)",{"$f":"SUM(D91:H91)","v":6},1,2,null,2,1]
[2,"Заместитель (64 час.)",{"$f":"SUM(D92:H92)","v":4},3,1]
[3,"Заместитель директора",1,{"$nulls":3},1]
[4,"Заведующий (64 час.)",10,1,2,null,2,5]
[5,"Заведующий отделением",8,null,4,null,1,3]
[6,"Заведующий структурного подразделения",4,{"$nulls":3},2,2]
[7,"Заведующий методическим кабинетом",0]
[8,"Концертмейстер (64 час.)",3,1,2]
[9,"Методист (64 час.)",14,2,7,null,2,3]
[10,"Педагог доп.образования (64 час.)",114,28,42,null,16,28]
[11,"Педагог-организатор (64 час.)",5,null,3,null,1,1]
[12,"Педагог-психолог (64 час.)",3,2,1]
[13,"Преподаватель (64 час.)",12,2,8,null,1,1]
[14,"Преподаватель ДМШ (64 час.)",10,4,3,null,1,2]
[15,"Преподаватель ДХШ (64 час.)",0]
[16,"Преподаватель ДШИ",7,2,1,null,2,2]
[17,"Учитель",0]
[18,"Тренер-преподаватель",0]
[19,"N",2,{"$nulls":3},1,1]
[null,null,{"$f":"SUM(C91:C109)","v":203}]
["Районные учреждения образования",null,null,"ИМЦ, РОО"]
["№","Предмет","Всего","Высшая квалификационная категория","I квалификационная категория","II квалификационная категория","Без категории","N"]
[2,"Заместитель ",{"$f":"SUM(D113:H113)","v":3},null,2,null,null,1]
[null,"Заместитель начальника",{"$f":"SUM(D114:H114)","v":2},{"$nulls":3},1,1]
[null,"Начальник",1,{"$nulls":4},1]
[null,"Начальник отдела",0]
[3,"Педагог-психолог ",1,{"$nulls":3},1]
[4,"Методист ",25,7,11,null,2,5]
[5,"Старший методист",0]
[6,"Специалист ",1,null,1]
[7,"Ведущий специалист ",0]
[null,"N",2,null,2]
[null,null,{"$f":"SUM(C113:C122)","v":35}]
["ПО"]
["№","Предмет","Всего","Высшая квалификационная категория","I квалификационная категория","II квалификационная категория","Без категории","N"]
[1,"Воспитатель (64 час.)",{"$f":"SUM(D126:H126)","v":3},null,2,null,null,1]
[{"$f":"A126+1","v":2},"Директор (108 час.)",{"$f":"SUM(D127:H127)","v":3},2,{"$nulls":3},1]
[{"$f":"A127+1","v":3},"Заведующий (96 час.)",1,{"$nulls":3},1]
[4,"Заведующий методическим кабинетом",0]
[5,"Заведующий отделением (64 час.)",2,1,1]
[6,"Заведующий филиалом",0]
[7,"Заместитель",3,null,2,null,null,1]
[8,"Заместитель директора ",4,1,1,null,1,1]
[9,"Музыкальный руководитель",0]
[10,"Мастер производ.обучения ",37,2,16,null,11,8]
[11,"СтаршиймМетодист ",1,1]
[12,"Методист ",1,null,1]
[13,"Педагог доп.образования (64 час.)",1,1]
[14,"Педагог-библиотекарь (64 час.)",0]
[15,"Педагог-организатор (64 час.)",0]
[16,"Педагог-психолог (64 час.)",0]
[17,"Преподаватель (96 час.)",154,43,60,null,25,26]
[18,"Общепроф. дисциплины (96 час.)",0]
[19,"Учитель",1,null,1]
[20,"Социальный педагог (64 час.)",0]
[21,"Старший мастер",1,{"$nulls":4},1]
[22,"Преподаватель-организатор основ безопасности",1,1]
[23,"Руководитель физического воспитания",1,1]
[24,"N",1,{"$nulls":4},1]
[25,"Концертмейстер",1,null,1]
[null,null,{"$f":"SUM(C126:C150)","v":216}]
["Прочие\n (детские дома, центры психолого-медико-социального сопровождения, межшкольный учебный комбинат, вечерняя школа закрытого типа)"]
["№","Предмет","Всего","Высшая квалификационная категория","I квалификационная категория","II квалификационная категория","Без категории","N"]
[1,"Воспитатель (64 час.)",5,null,1,null,1,3]
[2,"Директор (108 час.)"]
[3,"Замиститель"]
[4,"Инструктор по туду",3,1,1,null,null,1]
[5,"Инструктор по физической культуре"]
[6,"Музыкальный руководитель"]
[7,"Педагог доп.образования (64 час.)"]
[8,"Педагог-организатор"]
[9,"Педагог-библиотекарь (96 час.)"]
[10,"Педагог-психолог (64 час.)"]
[11,"Преподаватель"]
[12,"Социальный педагог (72 час.)"]
[13,"Специалист"]
[14,"Учитель"]
[15,"Учитель-дефектолог (196 час.)"]
[16,"Учитель-логопед (64 час.)"]
[17,"N"]
[null,null,8]
[null,null,2741]

{"sheet":"2.4 (2354)","index":5,"n_rows":171,"n_cols":8,"rows_kept":171,"merged":[[0,0,0,7],[60,0,60,7],[88,0,88,7],[111,0,111,7],[124,0,124,7],[150,0,150,7]]}
["2.4. Программа ПК, которая формирует у учителя(педагога) навыки развития у обучающихся метапредметных умений (например, креативность, критическое мышление, умение решать проблемы и др.)"]
["№","Предмет","Всего","Высшая квалификационная категория","I квалификационная категория","II квалификационная категория","Без категории","N"]
[1,"Директор (108 час.)",{"$f":"SUM(D3:H3)","v":26},6,18,null,2]
[2,"Заместитель директора (108 час.)",28,5,12,null,4,7]
[3,"Заместитель",34,7,14,null,4,9]
[4,"Заведующий",0]
[5,"Заведующий отделением",0]
[6,"Заведующий филиалом",0]
[7,"Педагог-библиотекарь (64 час.)",11,null,2,1,2,6]
[8,"Педагог-организатор (64 час.)",15,1,7,null,2,5]
[9,"Педагог-психолог (64 час.)",7,2,2,null,2,1]
[10,"Педагог доп. образования",3,null,1,null,null,2]
[11,"Старший педагог дополнительного образования",0]
[12,"Социальный педагог (64 час.)",0]
[13,"Воспитатель",31,1,18,null,8,4]
[14,"Старший воспитатель",0]
[15,"Специалист (64 час.)",1,null,1]
[16,"Сотрудник",0]
[17,"Мастер производственного обучения",0]
[18,"Методист",0]
[19,"Преподаватель",0]
[20,"Тьютор",1,null,1]
[21,"Учитель-дефектолог (96 час.)",2,null,1,null,null,1]
[22,"Учитель-дефектолог (олигофренопедагог)",0]
[23,"Учитель-дефектолог (сурдопедагог)",0]
[24,"Учитель-дефектолог (тифлопедагог)",0]
[25,"Учитель-логопед (64 час.)",1,{"$nulls":3},1]
[26,"Учитель (предмет не указан)",283,24,130,3,62,64]
[27,"Начальные классы (64 час.)",396,87,266,3,17,23]
[28,"Рус.яз. и лит-ра (96 час.)",102,38,51,null,8,5]
[29,"Тат.яз и лит (96 час.)",121,32,77,2,3,7]
[30,"Марийский язык 196 час.)",0]
[31,"Чувашский язык (96 час.)",0]
[32,"Удм. язык (96 час.)",0]
[{"$f":"A34+1","v":33},"Родной язык и литература",10,null,8,null,1,1]
[{"$f":"A35+1","v":34},"Иностранный язык",92,9,59,1,11,12]
[35,"Анг.яз. (96 час.)",0]
[36,"Франц.яз. (96 час.)",0]
[37,"Немец.яз. (96 час.)",0]
[38,"Математика (96 час.)",78,7,62,2,2,5]
[39,"Информатика и ИКТ (96 час.)",18,3,10,null,2,3]
[40,"История и обществознание (96 час.)",64,12,40,null,5,7]
[41,"География (96 час.)",36,10,18,null,3,5]
[42,"Физика (96 час.)",25,5,19,null,1]
[43,"Химия (96 час.)",21,10,10,null,1]
[44,"Биология (96 час.)",33,10,20,null,null,3]
[45,"Искусство",32,7,21,null,4]
[46,"ИЗО (96 час.)",0]
[47,"Музыка (96 час.)",0]
[48,"Технология (96 час.)",25,5,16,1,1,2]
[49,"ОБЖ (96 час.)",11,3,5,null,2,1]
[50,"Преподаватель-организатор основ безопасности жизнедеятельности",7,3,4]
[51,"Физ-ра (96 час.)",41,7,27,null,3,4]
[52,"Инструктор по физической культуре",0]
[53,"Тренер-преподаватель",1,{"$nulls":4},1]
[54,"ОРКСЭ (96 час.)",1,1]
[55,"Классный час",0]
[56,"Музыкальный руководитель",0]
[57,"N",109,25,57,1,13,13]
[null,null,{"$f":"SUM(C3:C59)","v":{"v":1666,"d":"1,666"}}]
["ДОО"]
["№","Предмет","Всего","Высшая квалификационная категория","I квалификационная категория","II квалификационная категория","Без категории","N"]
[1,"Заведующий  (72 час.)",{"$f":"SUM(D63:H63)","v":25},2,7,null,8,8]
[2,"Директор ",{"$f":"SUM(D64:H64)","v":1},1]
[3,"Заместитель",1,1]
[4,"Заместитель директора",0]
[5,"Заместитель заведующего",0]
[6,"Воспитатель (64 час.)",425,59,241,4,68,53]
[7,"Дошкольник",0]
[8,"Инструктор по физ.культуре (64 час.)",9,1,5,null,3]
[9,"Тренер-преподаватель",0]
[10,"Заведующий методическим кабинетом",0]
[11,"Методист (64 час.)",1,null,1]
[12,"Муз. руководитель  (64 час.)",31,5,25,null,1]
[13,"Педагог дополнительного образования",0]
[14,"Педагог-организатор",0]
[15,"Педагог-психолог (64 час.)",6,null,2,null,3,1]
[16,"Преподаватель",0]
[17,"Специалист",0]
[18,"Старший специалист",0]
[19,"Старший воспитатель (64 час.)",16,5,9,null,null,2]
[20,"Учитель",1,null,1]
[21,"Учитель-дефектолог",0]
[22,"Учитель-дефектолог (олигофренопедагог)",0]
[23,"Учитель-дефектолог (тифлопедагог)",0]
[24,"Учитель-логопед (64 час.)",1,{"$nulls":4},1]
[25,"N",7,null,3,null,1,3]
[null,null,{"$f":"SUM(C63:C87)","v":524}]
["ДОД"]
["№","Предмет","Всего","Высшая квалификационная категория","I квалификационная категория","II квалификационная категория","Без категории","N"]
[1,"Директор (108 час.)",{"$f":"SUM(D91:H91)","v":1},1]
[2,"Заместитель (64 час.)",{"$f":"SUM(D92:H92)","v":0}]
[3,"Заместитель директора",1,{"$nulls":4},1]
[4,"Заведующий (64 час.)",0]
[5,"Заведующий отделением",1,{"$nulls":3},1]
[6,"Заведующий структурного подразделения",0]
[7,"Заведующий методическим кабинетом",0]
[8,"Концертмейстер (64 час.)",0]
[9,"Методист (64 час.)",4,2,1,null,1]
[10,"Педагог доп.образования (64 час.)",70,12,25,null,11,22]
[11,"Педагог-организатор (64 час.)",2,{"$nulls":3},1,1]
[12,"Педагог-психолог (64 час.)",1,null,1]
[13,"Преподаватель (64 час.)",7,1,4,null,null,2]
[14,"Преподаватель ДМШ (64 час.)",2,1,null,null,1]
[15,"Преподаватель ДХШ (64 час.)",1,null,1]
[16,"Преподаватель ДШИ",2,1,{"$nulls":3},1]
[17,"Учитель",0]
[18,"Тренер-преподаватель",0]
[19,"N",0]
[20,"Воспитатель",1,1]
[null,null,{"$f":"SUM(C91:C110)","v":93}]
["Районные учреждения образования"]
["№","Предмет","Всего","Высшая квалификационная категория","I квалификационная категория","II квалификационная категория","Без категории","N"]
[2,"Заместитель "]
[null,"Заместитель начальника"]
[null,"Начальник"]
[null,"Начальник отдела"]
[3,"Педагог-психолог "]
[4,"Методист ",7,3,3,null,null,1]
[5,"Старший методист"]
[6,"Специалист "]
[7,"Ведущий специалист "]
[null,"N"]
[null,null,7]
["ПО"]
["№","Предмет","Всего","Высшая квалификационная категория","I квалификационная категория","II квалификационная категория","Без категории","N"]
[1,"Воспитатель (64 час.)",{"$f":"SUM(D127:H127)","v":1},{"$nulls":4},1]
[3,"Директор (108 час.)",{"$f":"SUM(D128:H128)","v":1},null,1]
[4,"Заведующий (96 час.)",0]
[null,"Заведующий методическим кабинетом",0]
[6,"Заведующий отделением (64 час.)",1,1]
[8,"Заведующий филиалом",0]
[9,"Заместитель",3,1,2]
[10,"Заместитель директора ",2,{"$nulls":3},1,1]
[11,"Музыкальный руководитель",0]
[12,"Мастер производ.обучения ",3,null,2,null,null,1]
[13,"Методист ",0]
[16,"Педагог доп.образования (64 час.)",1,1]
[17,"Педагог-библиотекарь (64 час.)",1,{"$nulls":3},1]
[18,"Педагог-организатор (64 час.)",0]
[19,"Педагог-психолог (64 час.)",1,null,1]
[21,"Преподаватель (96 час.)",46,11,20,null,6,9]
[23,"Общепроф. дисциплины (96 час.)",0]
[null,"Учитель",0]
[24,"Социальный педагог (64 час.)",0]
[25,"Старший мастер",0]
[28,"Руководитель физического воспитания",0]
[30,"N",1,1]
[31,"Преподаватель-организатор основ безопасности жизнедеятельности",0]
[null,null,{"$f":"SUM(C127:C149)","v":61}]
["Прочие\n (детские дома, центры психолого-медико-социального сопровождения, межшкольный учебный комбинат, вечерняя школа закрытого типа)"]
["№","Предмет","Всего","Высшая квалификационная категория","I квалификационная категория","II квалификационная категория","Без категории","N"]
[1,"Воспитатель (64 час.)"]
[2,"Директор (108 час.)"]
[3,"Замиститель"]
[4,"Инструктор по туду"]
[5,"Инструктор по физической культуре"]
[6,"Музыкальный руководитель",1,1]
[7,"Педагог доп.образования (64 час.)",1,null,1]
[8,"Педагог-организатор",1,null,1]
[9,"Педагог-библиотекарь (96 час.)"]
[10,"Педагог-психолог (64 час.)"]
[11,"Преподаватель"]
[12,"Социальный педагог (72 час.)"]
[13,"Специалист"]
[14,"Учитель"]
[15,"Учитель-дефектолог (196 час.)"]
[16,"Учитель-логопед (64 час.)"]
[17,"N"]
[null,null,3]
[null,null,2354]

{"sheet":"2.5 (669)","index":6,"n_rows":168,"n_cols":8,"rows_kept":168,"merged":[[0,0,0,7],[59,0,59,7],[87,0,87,7],[109,0,109,7],[122,0,122,5],[147,0,147,7]]}
["2.5. Программа ПК, которая формирует у учителя (педагога) навыки работы в полилингвальной образовательной среде."]
["№","Предмет","Всего","Высшая квалификационная категория","I квалификационная категория","II квалификационная категория","Без категории","N"]
[1,"Директор (108 час.)",{"$f":"SUM(D3:H3)","v":4},1,2,null,null,1]
[2,"Заместитель директора (108 час.)",8,3,3,null,1,1]
[3,"Заместитель",2,1,{"$nulls":3},1]
[4,"Заведующий",0]
[5,"Заведующий отделением",0]
[6,"Заведующий филиалом",0]
[7,"Педагог-библиотекарь (64 час.)",2,{"$nulls":3},1,1]
[8,"Педагог-организатор (64 час.)",1,{"$nulls":4},1]
[9,"Педагог-психолог (64 час.)",0]
[10,"Педагог доп. образования",0]
[11,"Старший педагог дополнительного образования",0]
[12,"Социальный педагог (64 час.)",0]
[13,"Воспитатель",5,null,3,null,1,1]
[14,"Старший воспитатель",0]
[15,"Специалист (64 час.)",0]
[16,"Сотрудник",0]
[17,"Мастер производственного обучения",0]
[18,"Методист",0]
[19,"Преподаватель",0]
[20,"Тьютор",0]
[21,"Учитель-дефектолог (96 час.)",0]
[22,"Учитель-дефектолог (олигофренопедагог)",0]
[23,"Учитель-дефектолог (сурдопедагог)",0]
[24,"Учитель-дефектолог (тифлопедагог)",0]
[25,"Учитель-логопед (64 час.)",0]
[26,"Учитель (предмет не указан)",42,6,9,1,12,14]
[27,"Начальные классы (64 час.)",11,3,6,1,null,1]
[28,"Рус.яз. и лит-ра (96 час.)",13,2,7,1,3]
[29,"Тат.яз и лит (96 час.)",48,13,26,1,3,5]
[30,"Марийский язык 196 час.)",0]
[31,"Чувашский язык (96 час.)",0]
[32,"Удм. язык (96 час.)",0]
[{"$f":"A34+1","v":33},"Иностранный язык",39,6,22,null,11]
[{"$f":"A35+1","v":34},"Анг.яз. (96 час.)",0]
[35,"Франц.яз. (96 час.)",0]
[36,"Немец.яз. (96 час.)",0]
[37,"Математика (96 час.)",4,2,1,null,null,1]
[38,"Информатика и ИКТ (96 час.)",1,{"$nulls":4},1]
[39,"История и обществознание (96 час.)",2,1,1]
[40,"География (96 час.)",2,1,1]
[41,"Физика (96 час.)",0]
[42,"Химия (96 час.)",3,1,2]
[43,"Биология (96 час.)",1,1]
[44,"Искусство",1,null,1]
[45,"ИЗО (96 час.)",0]
[46,"Музыка (96 час.)",0]
[47,"Технология (96 час.)",0]
[48,"ОБЖ (96 час.)",0]
[49,"Преподаватель-организатор основ безопасности жизнедеятельности",0]
[50,"Физ-ра (96 час.)",2,2]
[51,"Инструктор по физической культуре",0]
[52,"Тренер-преподаватель",0]
[53,"ОРКСЭ (96 час.)",0]
[54,"Классный час",0]
[55,"Музыкальный руководитель",0]
[56,"N",24,7,17]
[null,null,{"$f":"SUM(C3:C58)","v":215}]
["ДОО"]
["№","Предмет","Всего","Высшая квалификационная категория","I квалификационная категория","II квалификационная категория","Без категории","N"]
[1,"Заведующий  (72 час.)",{"$f":"SUM(D62:H62)","v":25},6,10,null,5,4]
[2,"Директор ",{"$f":"SUM(D63:H63)","v":0}]
[3,"Заместитель",0]
[4,"Заместитель директора",0]
[5,"Заместитель заведующего",0]
[6,"Воспитатель (64 час.)",351,53,197,1,60,40]
[7,"Дошкольник",0]
[8,"Инструктор по физ.культуре (64 час.)",4,1,2,null,1]
[9,"Тренер-преподаватель",0]
[10,"Заведующий методическим кабинетом",0]
[11,"Методист (64 час.)",1,null,1]
[12,"Муз. руководитель  (64 час.)",14,4,6,null,1,3]
[13,"Педагог дополнительного образования",0]
[14,"Педагог-организатор",0]
[15,"Педагог-психолог (64 час.)",1,null,1]
[16,"Преподаватель",0]
[17,"Специалист",2,null,1,null,1]
[18,"Старший специалист",0]
[19,"Старший воспитатель (64 час.)",8,1,6,null,1]
[20,"Учитель",1,null,1]
[21,"Учитель-дефектолог",0]
[22,"Учитель-дефектолог (олигофренопедагог)",0]
[23,"Учитель-дефектолог (тифлопедагог)",0]
[24,"Учитель-логопед (64 час.)",{"$f":"SUM(D85:H85)","v":2},null,2]
[25,"N",{"$f":"SUM(D86:H86)","v":2},{"$nulls":3},1,1]
[null,null,{"$f":"SUM(C62:C86)","v":411}]
["ДОД"]
["№","Предмет","Всего","Высшая квалификационная категория","I квалификационная категория","II квалификационная категория","Без категории","N"]
[1,"Директор (108 час.)",{"$f":"SUM(D90:H90)","v":1},{"$nulls":3},1]
[2,"Заместитель (64 час.)",0]
[3,"Заместитель директора",0]
[4,"Заведующий (64 час.)",0]
[5,"Заведующий отделением",0]
[6,"Заведующий структурного подразделения",0]
[7,"Заведующий методическим кабинетом",0]
[8,"Концертмейстер (64 час.)",0]
[9,"Методист (64 час.)",0]
[10,"Педагог доп.образования (64 час.)",24,null,3,null,8,13]
[11,"Педагог-организатор (64 час.)",0]
[12,"Педагог-психолог (64 час.)",0]
[13,"Преподаватель (64 час.)",0]
[14,"Преподаватель ДМШ (64 час.)",1,null,1]
[15,"Преподаватель ДХШ (64 час.)",0]
[16,"Преподаватель ДШИ",0]
[17,"Учитель",0]
[18,"Тренер-преподаватель",0]
[20,"N",2,{"$nulls":4},2]
[null,null,{"$f":"SUM(C90:C108)","v":28}]
["Районные учреждения образования"]
["№","Предмет","Всего","Высшая квалификационная категория","I квалификационная категория","II квалификационная категория","Без категории","N"]
[2,"Заместитель ",{"$f":"SUM(D112:H112)","v":0}]
[null,"Заместитель начальника",0]
[null,"Начальник",0]
[null,"Начальник отдела",0]
[3,"Педагог-психолог ",0]
[4,"Методист ",0]
[5,"Старший методист",0]
[6,"Специалист ",0]
[7,"Ведущий специалист ",0]
[null,"N",0]
[null,null,{"$f":"SUM(C112:C121)","v":0}]
["ПО"]
["№","Предмет","Всего","Высшая квалификационная категория","I квалификационная категория","II квалификационная категория","Без категории","N"]
[1,"Воспитатель (64 час.)",{"$f":"SUM(D125:H125)","v":0}]
[3,"Директор (108 час.)",0]
[4,"Заведующий (96 час.)",0]
[null,"Заведующий методическим кабинетом",0]
[6,"Заведующий отделением (64 час.)",1,{"$nulls":4},1]
[8,"Заведующий филиалом",0]
[9,"Заместитель",1,1]
[10,"Заместитель директора ",0]
[11,"Музыкальный руководитель",0]
[12,"Мастер производ.обучения ",0]
[13,"Методист ",0]
[16,"Педагог доп.образования (64 час.)",0]
[17,"Педагог-библиотекарь (64 час.)",0]
[18,"Педагог-организатор (64 час.)",0]
[19,"Педагог-психолог (64 час.)",0]
[21,"Преподаватель (96 час.)",13,2,8,null,3]
[23,"Общепроф. дисциплины (96 час.)",0]
[null,"Учитель",0]
[24,"Социальный педагог (64 час.)",0]
[25,"Старший мастер",0]
[28,"Руководитель физического воспитания",0]
[30,"N",0]
[null,null,{"$f":"SUM(C125:C146)","v":15}]
["Прочие\n (детские дома, центры психолого-медико-социального сопровождения, межшкольный учебный комбинат, вечерняя школа закрытого типа)"]
["№","Предмет","Всего","Высшая квалификационная категория","I квалификационная категория","II квалификационная категория","Без категории","N"]
[1,"Воспитатель (64 час.)",{"$f":"SUM(D150:H150)","v":0}]
[2,"Директор (108 час.)",0]
[3,"Замиститель",0]
[4,"Инструктор по туду",0]
[5,"Инструктор по физической культуре",0]
[6,"Музыкальный руководитель",0]
[7,"Педагог доп.образования (64 час.)",0]
[8,"Педагог-организатор",0]
[9,"Педагог-библиотекарь (96 час.)",0]
[10,"Педагог-психолог (64 час.)",0]
[11,"Преподаватель",0]
[12,"Социальный педагог (72 час.)",0]
[13,"Специалист",0]
[14,"Учитель",0]
[15,"Учитель-дефектолог (196 час.)",0]
[16,"Учитель-логопед (64 час.)",0]
[17,"N",0]
[null,null,{"$f":"SUM(C150:C166)","v":0}]
[null,null,669]

{"sheet":"2.6 (1047)","index":7,"n_rows":168,"n_cols":8,"rows_kept":168,"merged":[[0,0,0,7],[59,0,59,7],[87,0,87,7],[109,0,109,7],[122,0,122,5],[147,0,147,7]]}
["2.6. Программа ПК, которая формирует у учителя (педагога) навыки в области цифровых технологий применительно к работе учителя (педагога)."]
["№","Предмет","Всего","Высшая квалификационная категория","I квалификационная категория","II квалификационная категория","Без категории","N"]
[1,"Директор (108 час.)",{"$f":"SUM(D3:H3)","v":15},3,9,null,2,1]
[2,"Заместитель директора (108 час.)",27,4,10,null,4,9]
[3,"Заместитель",15,1,7,1,3,3]
[4,"Заведующий",0]
[5,"Заведующий отделением",0]
[6,"Заведующий филиалом",0]
[7,"Педагог-библиотекарь (64 час.)",19,null,3,null,6,10]
[8,"Педагог-организатор (64 час.)",5,1,2,null,1,1]
[9,"Педагог-психолог (64 час.)",1,1]
[10,"Педагог доп. образования",4,1,null,null,2,1]
[11,"Старший педагог дополнительного образования",0]
[12,"Социальный педагог (64 час.)",0]
[13,"Воспитатель",12,1,6,null,1,4]
[14,"Старший воспитатель",0]
[15,"Специалист (64 час.)",0]
[16,"Сотрудник",0]
[17,"Мастер производственного обучения",0]
[18,"Методист",0]
[19,"Преподаватель",0]
[20,"Тьютор",1,{"$nulls":4},1]
[21,"Учитель-дефектолог (96 час.)",0]
[22,"Учитель-дефектолог (олигофренопедагог)",0]
[23,"Учитель-дефектолог (сурдопедагог)",0]
[24,"Учитель-дефектолог (тифлопедагог)",0]
[25,"Учитель-логопед (64 час.)",0]
[26,"Учитель (предмет не указан)",120,11,54,null,28,27]
[27,"Начальные классы (64 час.)",100,25,66,null,5,4]
[28,"Рус.яз. и лит-ра (96 час.)",32,10,18,null,2,2]
[29,"Тат.яз и лит (96 час.)",27,8,15,null,2,2]
[30,"Марийский язык 196 час.)",0]
[31,"Чувашский язык (96 час.)",0]
[32,"Удм. язык (96 час.)",0]
[{"$f":"A34+1","v":33},"Иностранный язык",49,4,27,null,4,14]
[{"$f":"A35+1","v":34},"Анг.яз. (96 час.)",0]
[35,"Франц.яз. (96 час.)",0]
[36,"Немец.яз. (96 час.)",0]
[37,"Математика (96 час.)",33,4,25,null,1,3]
[38,"Информатика и ИКТ (96 час.)",18,3,12,null,null,3]
[39,"История и обществознание (96 час.)",19,3,12,2,null,2]
[40,"География (96 час.)",15,2,11,null,null,2]
[41,"Физика (96 час.)",16,5,9,null,2]
[42,"Химия (96 час.)",4,1,2,null,null,1]
[43,"Биология (96 час.)",13,2,8,null,null,3]
[44,"Искусство",9,2,6,1]
[45,"ИЗО (96 час.)",0]
[46,"Музыка (96 час.)",0]
[47,"Технология (96 час.)",21,3,10,null,3,5]
[48,"ОБЖ (96 час.)",0]
[49,"Преподаватель-организатор основ безопасности жизнедеятельности",3,2,1]
[50,"Физ-ра (96 час.)",23,4,18,null,null,1]
[51,"Инструктор по физической культуре",1,{"$nulls":4},1]
[52,"Тренер-преподаватель",0]
[53,"ОРКСЭ (96 час.)",0]
[54,"Классный час",0]
[55,"Музыкальный руководитель",1,{"$nulls":3},1]
[56,"N",35,2,23,null,4,6]
[null,null,{"$f":"SUM(C3:C58)","v":638}]
["ДОО"]
["№","Предмет","Всего","Высшая квалификационная категория","I квалификационная категория","II квалификационная категория","Без категории","N"]
[1,"Заведующий  (72 час.)",{"$f":"SUM(D62:H62)","v":14},1,6,null,2,5]
[2,"Директор ",{"$f":"SUM(D63:H63)","v":0}]
[3,"Заместитель",1,null,1]
[4,"Заместитель директора",0]
[5,"Заместитель заведующего",0]
[6,"Воспитатель (64 час.)",226,25,132,1,38,30]
[7,"Дошкольник",0]
[8,"Инструктор по физ.культуре (64 час.)",5,null,5]
[9,"Тренер-преподаватель",0]
[10,"Заведующий методическим кабинетом",1,null,1]
[11,"Методист (64 час.)",0]
[12,"Муз. руководитель  (64 час.)",12,1,6,null,2,3]
[13,"Педагог дополнительного образования",0]
[14,"Педагог-организатор",0]
[15,"Педагог-психолог (64 час.)",0]
[16,"Преподаватель",0]
[17,"Специалист",1,null,1]
[18,"Старший специалист",0]
[19,"Старший воспитатель (64 час.)",9,5,3,null,null,1]
[20,"Учитель",2,1,1]
[21,"Учитель-дефектолог",0]
[22,"Учитель-дефектолог (олигофренопедагог)",0]
[23,"Учитель-дефектолог (тифлопедагог)",0]
[24,"Учитель-логопед (64 час.)",9,null,5,null,3,1]
[25,"N",2,null,1,null,1]
[null,null,{"$f":"SUM(C62:C86)","v":282}]
["ДОД"]
["№","Предмет","Всего","Высшая квалификационная категория","I квалификационная категория","II квалификационная категория","Без категории","N"]
[1,"Директор (108 час.)",{"$f":"SUM(D90:H90)","v":1},1]
[2,"Заместитель (64 час.)",{"$f":"SUM(D91:H91)","v":0}]
[3,"Заместитель директора",0]
[4,"Заведующий (64 час.)",1,{"$nulls":4},1]
[5,"Заведующий отделением",0]
[6,"Заведующий структурного подразделения",0]
[7,"Заведующий методическим кабинетом",0]
[8,"Концертмейстер (64 час.)",1,null,1]
[9,"Методист (64 час.)",2,{"$nulls":4},2]
[10,"Педагог доп.образования (64 час.)",25,2,10,null,8,5]
[11,"Педагог-организатор (64 час.)",6,null,2,null,4]
[12,"Педагог-психолог (64 час.)",0]
[13,"Преподаватель (64 час.)",1,{"$nulls":4},1]
[14,"Преподаватель ДМШ (64 час.)",1,null,1]
[15,"Преподаватель ДХШ (64 час.)",0]
[16,"Преподаватель ДШИ",1,{"$nulls":3},1]
[17,"Учитель",0]
[18,"Тренер-преподаватель",0]
[19,"N",0]
[null,null,{"$f":"SUM(C90:C108)","v":39}]
["Районные учреждения образования",null,null,"ИМЦ, РОО"]
["№","Предмет","Всего","Высшая квалификационная категория","I квалификационная категория","II квалификационная категория","Без категории","N"]
[2,"Заместитель ",{"$f":"SUM(D112:H112)","v":1},1]
[null,"Заместитель начальника",{"$f":"SUM(D113:H113)","v":0}]
[null,"Начальник",0]
[null,"Начальник отдела",0]
[3,"Педагог-психолог ",0]
[4,"Методист ",15,7,5,null,2,1]
[5,"Старший методист",1,1]
[6,"Специалист ",0]
[7,"Ведущий специалист ",0]
[null,"N",0]
[null,null,{"$f":"SUM(C112:C121)","v":17}]
["ПО"]
["№","Предмет","Всего","Высшая квалификационная категория","I квалификационная категория","II квалификационная категория","Без категории","N"]
[1,"Воспитатель (64 час.)",{"$f":"SUM(D125:H125)","v":1},null,1]
[3,"Директор (108 час.)",{"$f":"SUM(D126:H126)","v":1},1]
[4,"Заведующий (96 час.)",1,{"$nulls":3},1]
[null,"Заведующий методическим кабинетом",1,1]
[6,"Заведующий отделением (64 час.)",2,1,1]
[8,"Начальник отдела",1,{"$nulls":4},1]
[9,"Заместитель",2,2]
[10,"Заместитель директора ",3,null,1,null,1,1]
[11,"Музыкальный руководитель",0]
[12,"Мастер производ.обучения ",5,1,null,null,2,2]
[13,"Методист ",0]
[16,"Педагог доп.образования (64 час.)",0]
[17,"Педагог-библиотекарь (64 час.)",1,1]
[18,"Педагог-организатор (64 час.)",0]
[19,"Педагог-психолог (64 час.)",0]
[21,"Преподаватель (96 час.)",50,13,23,null,5,9]
[23,"Общепроф. дисциплины (96 час.)",0]
[null,"Учитель",1,{"$nulls":4},1]
[24,"Социальный педагог (64 час.)",0]
[25,"Старший мастер",0]
[28,"Преподаватель физического воспитания",0]
[30,"N",2,{"$nulls":4},2]
[null,null,{"$f":"SUM(C125:C146)","v":71}]
["Прочие\n (детские дома, центры психолого-медико-социального сопровождения, межшкольный учебный комбинат, вечерняя школа закрытого типа)"]
["№","Предмет","Всего","Высшая квалификационная категория","I квалификационная категория","II квалификационная категория","Без категории","N"]
[1,"Воспитатель (64 час.)",{"$f":"SUM(D150:H150)","v":0}]
[2,"Директор (108 час.)",{"$f":"SUM(D151:H151)","v":0}]
[3,"Замиститель",0]
[4,"Инструктор по туду",0]
[5,"Инструктор по физической культуре",0]
[6,"Музыкальный руководитель",0]
[7,"Педагог доп.образования (64 час.)",0]
[8,"Педагог-организатор",0]
[9,"Педагог-библиотекарь (96 час.)",0]
[10,"Педагог-психолог (64 час.)",0]
[11,"Преподаватель",0]
[12,"Социальный педагог (72 час.)",0]
[13,"Специалист",0]
[14,"Учитель",0]
[15,"Учитель-дефектолог (196 час.)",0]
[16,"Учитель-логопед (64 час.)",0]
[17,"N",0]
[null,null,{"$f":"SUM(C150:C166)","v":0}]
[null,null,1047]

{"sheet":"2.7 (1504)","index":8,"n_rows":169,"n_cols":8,"rows_kept":169,"merged":[[0,0,0,7],[60,0,60,7],[88,0,88,7],[110,0,110,7],[123,0,123,7],[148,0,148,7]]}
["2.7. Программа ПК, которая формирует у учителя (педагога) навыки обучения детей с ограниченными возможностями здоровья (ОВЗ)"]
["№","Предмет","Всего","Высшая квалификационная категория","I квалификационная категория","II квалификационная категория","Без категории","N"]
[1,"Директор (108 час.)",{"$f":"SUM(D3:H3)","v":13},1,6,null,3,3]
[2,"Заместитель директора (108 час.)",18,2,6,null,5,5]
[3,"Заместитель",13,1,9,null,null,3]
[4,"Заведующий",0]
[5,"Заведующий отделением",0]
[6,"Заведующий филиалом",0]
[7,"Педагог-библиотекарь (64 час.)",5,null,2,null,1,2]
[8,"Педагог-организатор (64 час.)",6,null,3,null,2,1]
[9,"Педагог-психолог (64 час.)",4,2,1,null,1]
[10,"Педагог доп. образования",5,1,3,null,1]
[11,"Старший педагог дополнительного образования",0]
[12,"Социальный педагог (64 час.)",2,null,1,null,null,1]
[13,"Воспитатель",85,3,53,null,15,14]
[14,"Старший воспитатель",2,1,1]
[15,"Специалист (64 час.)",1,1]
[16,"Сотрудник",0]
[17,"Мастер производственного обучения",1,null,1]
[18,"Методист",0]
[19,"Преподаватель",0]
[20,"Тьютор",0]
[21,"Учитель-дефектолог (96 час.)",120,29,70,null,11,10]
[22,"Учитель-дефектолог (олигофренопедагог)",20,1,5,null,8,6]
[23,"Учитель-дефектолог (сурдопедагог)",7,1,3,null,1,2]
[24,"Учитель-дефектолог (тифлопедагог)",1,null,1]
[25,"Учитель-логопед (64 час.)",10,4,4,null,2]
[26,"Учитель (предмет не указан)",129,7,47,4,31,40]
[27,"Начальные классы (64 час.)",142,38,87,null,4,13]
[28,"Рус.яз. и лит-ра (96 час.)",21,4,12,2,1,2]
[29,"Тат.яз и лит (96 час.)",22,6,12,1,1,2]
[30,"Марийский язык 196 час.)",0]
[31,"Чувашский язык (96 час.)",0]
[32,"Удм. язык (96 час.)",0]
[{"$f":"A34+1","v":33},"Иностранный язык",15,1,7,null,1,6]
[{"$f":"A35+1","v":34},"Анг.яз. (96 час.)",0]
[35,"Франц.яз. (96 час.)",0]
[36,"Немец.яз. (96 час.)",0]
[37,"Математика (96 час.)",15,3,12]
[38,"Информатика и ИКТ (96 час.)",2,1,{"$nulls":3},1]
[39,"История и обществознание (96 час.)",15,4,7,null,1,3]
[40,"География (96 час.)",6,2,3,null,1]
[41,"Физика (96 час.)",4,1,3]
[42,"Химия (96 час.)",7,2,4,null,1]
[43,"Биология (96 час.)",14,2,10,null,2]
[44,"Искусство",5,1,3,1]
[45,"ИЗО (96 час.)",0]
[46,"Музыка (96 час.)",0]
[47,"Технология (96 час.)",14,4,6,null,1,3]
[48,"ОБЖ (96 час.)",1,null,1]
[49,"Преподаватель-организатор основ безопасности жизнедеятельности",1,1]
[50,"Физ-ра (96 час.)",23,7,13,null,1,2]
[51,"Инструктор по физической культуре",1,{"$nulls":4},1]
[52,"Тренер-преподаватель",0]
[53,"ОРКСЭ (96 час.)",1,{"$nulls":3},1]
[54,"Классный час",0]
[55,"Музыкальный руководитель",{"$f":"SUM(D57:H57)","v":0}]
[56,"Коррекционные технологии",10,null,8,null,1,1]
[57,"N",30,10,14,null,3,3]
[null,null,{"$f":"SUM(C3:C59)","v":791}]
["ДОО"]
["№","Предмет","Всего","Высшая квалификационная категория","I квалификационная категория","II квалификационная категория","Без категории","N"]
[1,"Заведующий  (72 час.)",{"$f":"SUM(D63:H63)","v":33},6,8,1,13,5]
[2,"Директор ",{"$f":"SUM(D64:H64)","v":0}]
[3,"Заместитель",0]
[4,"Заместитель директора",0]
[5,"Заместитель заведующего",0]
[6,"Воспитатель (64 час.)",351,52,212,1,48,38]
[7,"Дошкольник",0]
[8,"Инструктор по физ.культуре (64 час.)",28,9,13,null,3,3]
[9,"Тренер-преподаватель",0]
[10,"Заведующий методическим кабинетом",0]
[11,"Методист (64 час.)",0]
[12,"Муз. руководитель  (64 час.)",16,5,7,null,2,2]
[13,"Педагог дополнительного образования",0]
[14,"Педагог-организатор",0]
[15,"Педагог-психолог (64 час.)",19,2,7,null,7,3]
[16,"Преподаватель",2,1,1]
[17,"Специалист",2,1,null,null,1]
[18,"Старший специалист",0]
[19,"Старший воспитатель (64 час.)",7,1,6]
[20,"Учитель",1,1]
[21,"Учитель-дефектолог",19,5,8,null,5,1]
[22,"Учитель-дефектолог (олигофренопедагог)",2,null,1,null,1]
[23,"Учитель-дефектолог (тифлопедагог)",4,2,2]
[24,"Учитель-логопед (64 час.)",133,36,77,null,16,4]
[25,"N",1,null,1]
[null,null,{"$f":"SUM(C63:C87)","v":618}]
["ДОД"]
["№","Предмет","Всего","Высшая квалификационная категория","I квалификационная категория","II квалификационная категория","Без категории","N"]
[1,"Директор (108 час.)",{"$f":"SUM(D91:H91)","v":1},null,1]
[2,"Заместитель (64 час.)",{"$f":"SUM(D92:H92)","v":3},2,1]
[3,"Заместитель директора",0]
[4,"Заведующий (64 час.)",2,null,1,null,null,1]
[5,"Заведующий отделением",1,{"$nulls":4},1]
[6,"Заведующий структурного подразделения",0]
[7,"Заведующий методическим кабинетом",0]
[8,"Концертмейстер (64 час.)",1,1]
[9,"Методист (64 час.)",2,{"$nulls":3},1,1]
[10,"Педагог доп.образования (64 час.)",33,2,14,1,4,12]
[11,"Педагог-организатор (64 час.)",0]
[12,"Педагог-психолог (64 час.)",1,{"$nulls":3},1]
[13,"Преподаватель (64 час.)",1,1]
[14,"Преподаватель ДМШ (64 час.)",2,null,1,null,1]
[15,"Преподаватель ДХШ (64 час.)",0]
[16,"Преподаватель ДШИ",3,2,1]
[17,"Учитель",0]
[18,"Тренер-преподаватель",0]
[19,"N",0]
[null,null,{"$f":"SUM(C91:C109)","v":50}]
["Районные учреждения образования"]
["№","Предмет","Всего","Высшая квалификационная категория","I квалификационная категория","II квалификационная категория","Без категории","N"]
[2,"Заместитель ",{"$f":"SUM(D113:H113)","v":0}]
[null,"Заместитель начальника",{"$f":"SUM(D114:H114)","v":1},null,1]
[null,"Начальник",0]
[null,"Начальник отдела",0]
[3,"Педагог-психолог ",0]
[4,"Методист ",3,null,2,null,1]
[5,"Старший методист",0]
[6,"Специалист ",0]
[7,"Ведущий специалист ",0]
[null,"N",1,{"$nulls":3},1]
[null,null,{"$f":"SUM(C113:C122)","v":5}]
["ПО"]
["№","Предмет","Всего","Высшая квалификационная категория","I квалификационная категория","II квалификационная категория","Без категории","N"]
[1,"Воспитатель (64 час.)",{"$f":"SUM(D126:H126)","v":0}]
[3,"Директор (108 час.)",{"$f":"SUM(D127:H127)","v":1},{"$nulls":3},1]
[4,"Заведующий (96 час.)",0]
[null,"Заведующий методическим кабинетом",0]
[6,"Заведующий отделением (64 час.)",0]
[8,"Заведующий филиалом",0]
[9,"Заместитель",0]
[10,"Заместитель директора ",1,null,1]
[11,"Музыкальный руководитель",0]
[12,"Мастер производ.обучения ",5,1,2,null,2]
[13,"Методист ",0]
[16,"Педагог доп.образования (64 час.)",0]
[17,"Педагог-библиотекарь (64 час.)",0]
[18,"Педагог-организатор (64 час.)",0]
[19,"Педагог-психолог (64 час.)",0]
[21,"Преподаватель (96 час.)",13,6,4,null,1,2]
[23,"Общепроф. дисциплины (96 час.)",0]
[null,"Учитель",0]
[24,"Социальный педагог (64 час.)",1,null,1]
[25,"Старший мастер",0]
[28,"Руководитель физического воспитания",0]
[30,"N",2,1,1]
[null,null,{"$f":"SUM(C126:C147)","v":23}]
["Прочие\n (детские дома, центры психолого-медико-социального сопровождения, межшкольный учебный комбинат, вечерняя школа закрытого типа)"]
["№","Предмет","Всего","Высшая квалификационная категория","I квалификационная категория","II квалификационная категория","Без категории","N"]
[1,"Воспитатель (64 час.)",{"$f":"SUM(D151:H151)","v":10},null,1,1,4,4]
[2,"Директор (108 час.)",{"$f":"SUM(D152:H152)","v":0}]
[3,"Замиститель",0]
[4,"Инструктор по туду",0]
[5,"Инструктор по физической культуре",1,{"$nulls":4},1]
[6,"Музыкальный руководитель",1,{"$nulls":4},1]
[7,"Педагог доп.образования (64 час.)",0]
[8,"Педагог-организатор",0]
[9,"Педагог-библиотекарь (96 час.)",0]
[10,"Педагог-психолог (64 час.)",3,null,1,null,2]
[11,"Преподаватель",0]
[12,"Социальный педагог (72 час.)",0]
[13,"Специалист",0]
[14,"Учитель",0]
[15,"Учитель-дефектолог (196 час.)",0]
[16,"Учитель-логопед (64 час.)",2,null,2]
[17,"N",0]
[null,null,{"$f":"SUM(C151:C167)","v":17}]
[null,null,1504]

{"sheet":"2.8 (577)","index":9,"n_rows":168,"n_cols":8,"rows_kept":168,"merged":[[0,0,0,7],[59,0,59,7],[87,0,87,7],[109,0,109,7],[122,0,122,5],[147,0,147,7]]}
["2.8. Программа ПК, которая развивает у учителя (педагога) навыки оценивания обучающихся"]
["№","Предмет","Всего","Высшая квалификационная категория","I квалификационная категория","II квалификационная категория","Без категории","N"]
[1,"Директор (108 час.)",{"$f":"SUM(D3:H3)","v":9},2,7]
[2,"Заместитель директора (108 час.)",19,3,8,null,1,7]
[3,"Заместитель",10,3,5,null,1,1]
[4,"Заведующий",0]
[5,"Заведующий отделением",0]
[6,"Заведующий филиалом",0]
[7,"Педагог-библиотекарь (64 час.)",0]
[8,"Педагог-организатор (64 час.)",1,null,1]
[9,"Педагог-психолог (64 час.)",1,{"$nulls":3},1]
[10,"Педагог доп. образования",0]
[11,"Старший педагог дополнительного образования",1,{"$nulls":4},1]
[12,"Социальный педагог (64 час.)",0]
[13,"Воспитатель",5,null,3,1,null,1]
[14,"Старший воспитатель",0]
[15,"Специалист (64 час.)",0]
[16,"Сотрудник",0]
[17,"Мастер производственного обучения",0]
[18,"Методист",0]
[19,"Преподаватель",0]
[20,"Тьютор",0]
[21,"Учитель-дефектолог (96 час.)",1,{"$nulls":3},1]
[22,"Учитель-дефектолог (олигофренопедагог)",0]
[23,"Учитель-дефектолог (сурдопедагог)",0]
[24,"Учитель-дефектолог (тифлопедагог)",0]
[25,"Учитель-логопед (64 час.)",0]
[26,"Учитель (предмет не указан)",76,8,25,null,19,24]
[27,"Начальные классы (64 час.)",152,34,99,null,7,12]
[28,"Рус.яз. и лит-ра (96 час.)",18,4,7,null,4,3]
[29,"Тат.яз и лит (96 час.)",21,3,14,null,1,3]
[30,"Марийский язык 196 час.)",0]
[31,"Чувашский язык (96 час.)",0]
[32,"Удм. язык (96 час.)",0]
[{"$f":"A34+1","v":33},"Иностранный язык",22,null,10,1,7,4]
[{"$f":"A35+1","v":34},"Анг.яз. (96 час.)",0]
[35,"Франц.яз. (96 час.)",0]
[36,"Немец.яз. (96 час.)",0]
[37,"Математика (96 час.)",15,2,13]
[38,"Информатика и ИКТ (96 час.)",4,1,1,1,null,1]
[39,"История и обществознание (96 час.)",12,3,6,null,2,1]
[40,"География (96 час.)",6,null,6]
[41,"Физика (96 час.)",7,1,2,null,1,3]
[42,"Химия (96 час.)",2,1,1]
[43,"Биология (96 час.)",5,1,4]
[44,"Искусство",2,null,2]
[45,"ИЗО (96 час.)",0]
[46,"Музыка (96 час.)",0]
[47,"Технология (96 час.)",3,null,3]
[48,"ОБЖ (96 час.)",5,1,4]
[49,"Преподаватель-организатор основ безопасности жизнедеятельности",1,{"$nulls":4},1]
[50,"Физ-ра (96 час.)",20,1,17,null,1,1]
[51,"Руководитель физического воспитания",1,null,1]
[52,"Тренер-преподаватель",0]
[53,"ОРКСЭ (96 час.)",0]
[54,"Классный час",1,{"$nulls":4},1]
[55,"Музыкальный руководитель",0]
[56,"N",34,4,22,null,5,3]
[null,null,{"$f":"SUM(C3:C58)","v":454}]
["ДОО"]
["№","Предмет","Всего","Высшая квалификационная категория","I квалификационная категория","II квалификационная категория","Без категории","N"]
[1,"Заведующий  (72 час.)",{"$f":"SUM(D62:H62)","v":4},null,1,null,1,2]
[2,"Директор ",{"$f":"SUM(D63:H63)","v":0}]
[3,"Заместитель",0]
[4,"Заместитель директора",0]
[5,"Заместитель заведующего",0]
[6,"Воспитатель (64 час.)",32,5,18,null,5,4]
[7,"Дошкольник",0]
[8,"Инструктор по физ.культуре (64 час.)",1,{"$nulls":4},1]
[9,"Тренер-преподаватель",0]
[10,"Заведующий методическим кабинетом",0]
[11,"Методист (64 час.)",0]
[12,"Муз. руководитель  (64 час.)",3,1,1,null,null,1]
[13,"Педагог дополнительного образования",0]
[14,"Педагог-организатор",0]
[15,"Педагог-психолог (64 час.)",2,{"$nulls":3},1,1]
[16,"Преподаватель",0]
[17,"Специалист",1,{"$nulls":4},1]
[18,"Старший специалист",0]
[19,"Старший воспитатель (64 час.)",1,1]
[20,"Учитель",0]
[21,"Учитель-дефектолог",0]
[22,"Учитель-дефектолог (олигофренопедагог)",0]
[23,"Учитель-дефектолог (тифлопедагог)",0]
[24,"Учитель-логопед (64 час.)",1,{"$nulls":3},1]
[25,"N",1,null,1]
[null,null,{"$f":"SUM(C62:C86)","v":46}]
["ДОД"]
["№","Предмет","Всего","Высшая квалификационная категория","I квалификационная категория","II квалификационная категория","Без категории","N"]
[1,"Директор (108 час.)",{"$f":"SUM(D90:H90)","v":0}]
[2,"Заместитель (64 час.)",{"$f":"SUM(D91:H91)","v":0}]
[3,"Заместитель директора",0]
[4,"Заведующий (64 час.)",0]
[5,"Заведующий отделением",0]
[6,"Заведующий структурного подразделения",0]
[7,"Заведующий методическим кабинетом",0]
[8,"Концертмейстер (64 час.)",3,null,1,null,null,2]
[9,"Методист (64 час.)",0]
[10,"Педагог доп.образования (64 час.)",18,4,7,1,2,4]
[11,"Педагог-организатор (64 час.)",0]
[12,"Педагог-психолог (64 час.)",0]
[13,"Преподаватель (64 час.)",9,3,5,null,null,1]
[14,"Преподаватель ДМШ (64 час.)",0]
[15,"Преподаватель ДХШ (64 час.)",0]
[16,"Преподаватель ДШИ",10,2,8]
[17,"Учитель",0]
[18,"Тренер-преподаватель",0]
[19,"N",0]
[null,null,{"$f":"SUM(C90:C108)","v":40}]
["Районные учреждения образования",null,null,"ИМЦ, РОО"]
["№","Предмет","Всего","Высшая квалификационная категория","I квалификационная категория","II квалификационная категория","Без категории","N"]
[2,"Заместитель ",{"$f":"SUM(D112:H112)","v":0}]
[null,"Заместитель начальника",{"$f":"SUM(D113:H113)","v":0}]
[null,"Начальник",0]
[null,"Начальник отдела",0]
[3,"Педагог-психолог ",0]
[4,"Методист ",0]
[5,"Старший методист",0]
[6,"Специалист ",0]
[7,"Ведущий специалист ",0]
[null,"N",0]
[null,null,{"$f":"SUM(C112:C121)","v":0}]
["ПО"]
["№","Предмет","Всего","Высшая квалификационная категория","I квалификационная категория","II квалификационная категория","Без категории","N"]
[1,"Воспитатель (64 час.)",{"$f":"SUM(D125:H125)","v":1},{"$nulls":3},1]
[3,"Директор (108 час.)",{"$f":"SUM(D126:H126)","v":0}]
[4,"Заведующий (96 час.)",0]
[null,"Заведующий методическим кабинетом",0]
[6,"Заведующий отделением (64 час.)",1,null,1]
[8,"Заведующий филиалом",0]
[9,"Заместитель",0]
[10,"Заместитель директора ",4,null,1,null,2,1]
[11,"Музыкальный руководитель",0]
[12,"Мастер производ.обучения ",6,null,3,1,null,2]
[13,"Методист ",0]
[16,"Педагог доп.образования (64 час.)",0]
[17,"Педагог-библиотекарь (64 час.)",0]
[18,"Педагог-организатор (64 час.)",0]
[19,"Педагог-психолог (64 час.)",0]
[21,"Преподаватель (96 час.)",23,5,15,null,2,1]
[23,"Общепроф. дисциплины (96 час.)",0]
[null,"Учитель",0]
[24,"Социальный педагог (64 час.)",0]
[25,"Старший мастер",0]
[28,"Преподаватель физического воспитания",0]
[30,"N",0]
[null,null,{"$f":"SUM(C125:C146)","v":35}]
["Прочие\n (детские дома, центры психолого-медико-социального сопровождения, межшкольный учебный комбинат, вечерняя школа закрытого типа)"]
["№","Предмет","Всего","Высшая квалификационная категория","I квалификационная категория","II квалификационная категория","Без категории","N"]
[1,"Воспитатель (64 час.)",{"$f":"SUM(D150:H150)","v":1},null,1]
[2,"Директор (108 час.)",{"$f":"SUM(D151:H151)","v":0}]
[3,"Замиститель",0]
[4,"Инструктор по туду",0]
[5,"Инструктор по физической культуре",0]
[6,"Музыкальный руководитель",0]
[7,"Педагог доп.образования (64 час.)",0]
[8,"Педагог-организатор",0]
[9,"Педагог-библиотекарь (96 час.)",0]
[10,"Педагог-психолог (64 час.)",1,1]
[11,"Преподаватель",0]
[12,"Социальный педагог (72 час.)",0]
[13,"Специалист",0]
[14,"Учитель",0]
[15,"Учитель-дефектолог (196 час.)",0]
[16,"Учитель-логопед (64 час.)",0]
[17,"N",0]
[null,null,{"$f":"SUM(C150:C166)","v":2}]
[null,null,577]

{"sheet":"2.9 (144)","index":10,"n_rows":168,"n_cols":8,"rows_kept":168,"merged":[[0,0,0,7],[57,0,57,7],[86,0,86,7],[108,0,108,7],[121,0,121,5],[147,0,147,7]]}
["2.9. Программа ПК по подготовке тьюторов организаций ДОО, ДОД, СПО в области цифровых технологий."]
["№","Предмет","Всего","Высшая квалификационная категория","I квалификационная категория","II квалификационная категория","Без категории","N"]
[1,"Директор (108 час.)",{"$f":"SUM(D3:H3)","v":1},null,1]
[2,"Заместитель директора (108 час.)",1,null,1]
[3,"Заместитель",1,{"$nulls":4},1]
[4,"Заведующий",0]
[5,"Заведующий отделением",0]
[6,"Заведующий филиалом",0]
[7,"Педагог-библиотекарь (64 час.)",1,{"$nulls":4},1]
[8,"Педагог-организатор (64 час.)",5,2,2,null,1]
[9,"Педагог-психолог (64 час.)",0]
[10,"Педагог доп. образования",1,{"$nulls":3},1]
[11,"Старший педагог дополнительного образования",0]
[12,"Социальный педагог (64 час.)",0]
[13,"Воспитатель",4,null,1,null,null,3]
[14,"Старший воспитатель",0]
[15,"Специалист (64 час.)",0]
[16,"Сотрудник",0]
[17,"Мастер производственного обучения",0]
[18,"Методист",0]
[19,"Преподаватель",0]
[20,"Тьютор",1,{"$nulls":3},1]
[21,"Учитель-дефектолог (96 час.)",0]
[22,"Учитель-дефектолог (олигофренопедагог)",0]
[23,"Учитель-дефектолог (сурдопедагог)",0]
[24,"Учитель-дефектолог (тифлопедагог)",0]
[25,"Учитель-логопед (64 час.)",0]
[26,"Учитель (предмет не указан)",5,2,{"$nulls":3},3]
[27,"Начальные классы (64 час.)",4,1,3]
[28,"Рус.яз. и лит-ра (96 час.)",0]
[29,"Тат.яз и лит (96 час.)",1,null,1]
[30,"Марийский язык 196 час.)",0]
[31,"Чувашский язык (96 час.)",0]
[32,"Удм. язык (96 час.)",0]
[33,"Анг.яз. (96 час.)",0]
[34,"Франц.яз. (96 час.)",0]
[35,"Немец.яз. (96 час.)",0]
[36,"Математика (96 час.)",3,null,1,null,2]
[37,"Информатика и ИКТ (96 час.)",2,null,2]
[38,"История и обществознание (96 час.)",1,1]
[39,"География (96 час.)",0]
[40,"Физика (96 час.)",0]
[41,"Химия (96 час.)",0]
[42,"Биология (96 час.)",0]
[43,"ИЗО (96 час.)",0]
[44,"Музыка (96 час.)",0]
[45,"Технология (96 час.)",2,null,2]
[46,"ОБЖ (96 час.)",0]
[47,"Преподаватель-организатор основ безопасности жизнедеятельности",0]
[48,"Физ-ра (96 час.)",1,1]
[49,"Инструктор по физической культуре",0]
[50,"Тренер-преподаватель",0]
[51,"ОРКСЭ (96 час.)",0]
[52,"Классный час",0]
[53,"Музыкальный руководитель",1,{"$nulls":3},1]
[54,"N",1,{"$nulls":3},1]
[null,null,{"$f":"SUM(C3:C56)","v":36}]
["ДОО"]
["№","Предмет","Всего","Высшая квалификационная категория","I квалификационная категория","II квалификационная категория","Без категории","N"]
[1,"Заведующий  (72 час.)",{"$f":"SUM(D60:H60)","v":17},2,6,null,1,8]
[2,"Директор ",{"$f":"SUM(D61:H61)","v":0}]
[3,"Заместитель",1,null,1]
[4,"Заместитель директора",0]
[5,"Заместитель заведующего",0]
[6,"Воспитатель (64 час.)",55,11,28,null,7,9]
[7,"Дошкольник",0]
[8,"Инструктор по физ.культуре (64 час.)",0]
[9,"Тренер-преподаватель",0]
[10,"Заведующий методическим кабинетом",0]
[11,"Методист (64 час.)",0]
[12,"Муз. руководитель  (64 час.)",1,{"$nulls":3},1]
[13,"Педагог дополнительного образования",0]
[14,"Педагог-организатор",0]
[15,"Педагог-психолог (64 час.)",2,null,2]
[16,"Преподаватель",0]
[17,"Специалист",0]
[18,"Старший специалист",0]
[19,"Старший воспитатель (64 час.)",5,2,3]
[20,"Учитель",0]
[21,"Учитель-дефектолог",0]
[22,"Учитель-дефектолог (олигофренопедагог)",0]
[23,"Учитель-дефектолог (тифлопедагог)",0]
[24,"Учитель-логопед (64 час.)",4,null,2,null,2]
[25,"Тьютор",1,{"$nulls":4},1]
[26,"N",1,null,1]
[null,null,{"$f":"SUM(C60:C85)","v":87}]
["ДОД"]
["№","Предмет","Всего","Высшая квалификационная категория","I квалификационная категория","II квалификационная категория","Без категории","N"]
[1,"Директор (108 час.)",{"$f":"SUM(D89:H89)","v":0}]
[2,"Заместитель (64 час.)",{"$f":"SUM(D90:H90)","v":1},null,1]
[3,"Заместитель директора",0]
[4,"Заведующий (64 час.)",0]
[5,"Заведующий отделением",0]
[6,"Заведующий структурного подразделения",0]
[7,"Заведующий методическим кабинетом",0]
[8,"Концертмейстер (64 час.)",1,{"$nulls":4},1]
[9,"Методист (64 час.)",4,1,1,null,null,2]
[10,"Педагог доп.образования (64 час.)",2,1,1]
[11,"Педагог-организатор (64 час.)",1,{"$nulls":3},1]
[12,"Педагог-психолог (64 час.)",0]
[13,"Преподаватель (64 час.)",0]
[14,"Преподаватель ДМШ (64 час.)",0]
[15,"Преподаватель ДХШ (64 час.)",0]
[16,"Преподаватель ДШИ",0]
[17,"Учитель",0]
[18,"Тренер-преподаватель",0]
[19,"N",0]
[null,null,{"$f":"SUM(C89:C107)","v":9}]
["Районные учреждения образования",null,null,"ИМЦ, РОО"]
["№","Предмет","Всего","Высшая квалификационная категория","I квалификационная категория","II квалификационная категория","Без категории","N"]
[2,"Заместитель ",{"$f":"SUM(D111:H111)","v":0}]
[null,"Заместитель начальника",{"$f":"SUM(D112:H112)","v":0}]
[null,"Начальник",0]
[null,"Начальник отдела",0]
[3,"Педагог-психолог ",0]
[4,"Методист ",2,null,2]
[5,"Старший методист",0]
[6,"Специалист ",0]
[7,"Ведущий специалист ",0]
[null,"N",0]
[null,null,{"$f":"SUM(C111:C120)","v":2}]
["ПО"]
["№","Предмет","Всего","Высшая квалификационная категория","I квалификационная категория","II квалификационная категория","Без категории","N"]
[1,"Воспитатель (64 час.)",{"$f":"SUM(D124:H124)","v":0}]
[{"$f":"A124+1","v":2},"Директор (108 час.)",{"$f":"SUM(D125:H125)","v":0}]
[{"$f":"A125+1","v":3},"Заведующий (96 час.)",0]
[4,"Заведующий методическим кабинетом",0]
[5,"Заведующий отделением (64 час.)",0]
[6,"Заведующий филиалом",0]
[7,"Заместитель",2,{"$nulls":4},2]
[8,"Заместитель директора ",0]
[9,"Музыкальный руководитель",0]
[10,"Мастер производ.обучения ",0]
[11,"Методист ",1,null,1]
[12,"Педагог доп.образования (64 час.)",0]
[13,"Педагог-библиотекарь (64 час.)",1,{"$nulls":4},1]
[14,"Педагог-организатор (64 час.)",0]
[15,"Педагог-психолог (64 час.)",0]
[16,"Преподаватель (96 час.)",5,1,1,null,1,2]
[17,"Общепроф. дисциплины (96 час.)",0]
[18,"Учитель",0]
[19,"Социальный педагог (64 час.)",0]
[20,"Старший мастер",0]
[21,"Руководитель физического воспитания",{"$f":"SUM(D144:H144)","v":0}]
[22,"Начальник отдела",1,null,1]
[23,"N",0]
[null,null,{"$f":"SUM(C124:C146)","v":10}]
["Прочие\n (детские дома, центры психолого-медико-социального сопровождения, межшкольный учебный комбинат, вечерняя школа закрытого типа)"]
["№","Предмет","Всего","Высшая квалификационная категория","I квалификационная категория","II квалификационная категория","Без категории","N"]
[1,"Воспитатель (64 час.)",{"$f":"SUM(D150:H150)","v":0}]
[2,"Директор (108 час.)",{"$f":"SUM(D151:H151)","v":0}]
[3,"Замиститель",0]
[4,"Инструктор по туду",0]
[5,"Инструктор по физической культуре",0]
[6,"Музыкальный руководитель",0]
[7,"Педагог доп.образования (64 час.)",0]
[8,"Педагог-организатор",0]
[9,"Педагог-библиотекарь (96 час.)",0]
[10,"Педагог-психолог (64 час.)",0]
[11,"Преподаватель",0]
[12,"Социальный педагог (72 час.)",0]
[13,"Специалист",0]
[14,"Учитель",0]
[15,"Учитель-дефектолог (196 час.)",0]
[16,"Учитель-логопед (64 час.)",0]
[17,"N",0]
[null,null,{"$f":"SUM(C150:C166)","v":0}]
[null,null,144]

{"sheet":"2.10 (1056)","index":11,"n_rows":169,"n_cols":8,"rows_kept":169,"merged":[[0,0,0,7],[59,0,59,7],[87,0,87,7],[109,0,109,7],[122,0,122,5],[147,0,147,7]]}
["2.10. Дистанционная программа ПК для отдельных категорий участников: старших воспитателей, воспитателей ДОО, учителей математики, русского языка, родного языка, обществознания, географии, педагогов по обучению детей с ограниченными возможностями здоровья, педагогов ДОД."]
["№","Предмет","Всего","Высшая квалификационная категория","I квалификационная категория","II квалификационная категория","Без категории","N"]
[1,"Директор (108 час.)",{"$f":"SUM(D3:H3)","v":0}]
[2,"Заместитель директора (108 час.)",6,1,2,null,1,2]
[3,"Заместитель",3,null,2,null,null,1]
[4,"Заведующий",0]
[5,"Заведующий отделением",0]
[6,"Заведующий филиалом",0]
[7,"Педагог-библиотекарь (64 час.)",5,{"$nulls":4},5]
[8,"Педагог-организатор (64 час.)",7,null,5,null,null,2]
[9,"Педагог-психолог (64 час.)",1,{"$nulls":4},1]
[10,"Педагог доп. образования",6,2,3,null,1]
[11,"Старший педагог дополнительного образования",0]
[12,"Социальный педагог (64 час.)",0]
[13,"Воспитатель",36,null,17,null,11,8]
[14,"Старший воспитатель",0]
[15,"Специалист (64 час.)",0]
[16,"Сотрудник",0]
[17,"Мастер производственного обучения",0]
[18,"Методист",1,{"$nulls":4},1]
[19,"Преподаватель",0]
[20,"Тьютор",0]
[21,"Учитель-дефектолог (96 час.)",5,null,5]
[22,"Учитель-дефектолог (олигофренопедагог)",0]
[23,"Учитель-дефектолог (сурдопедагог)",1,1]
[24,"Учитель-дефектолог (тифлопедагог)",2,1,1]
[25,"Учитель-логопед (64 час.)",1,{"$nulls":3},1]
[26,"Учитель (предмет не указан)",39,6,14,1,6,12]
[27,"Начальные классы (64 час.)",8,1,3,null,1,3]
[28,"Рус.яз. и лит-ра (96 час.)",20,3,16,null,1]
[29,"Тат.яз и лит (96 час.)",37,9,27,null,null,1]
[{"$f":"A31+1","v":30},"Родной язык и литература",6,null,2,null,3,1]
[{"$f":"A32+1","v":31},"Марийский язык 196 час.)",0]
[32,"Чувашский язык (96 час.)",0]
[33,"Удм. язык (96 час.)",0]
[34,"Иностранный язык",3,null,2,null,1]
[35,"Анг.яз. (96 час.)",0]
[36,"Франц.яз. (96 час.)",0]
[37,"Немец.яз. (96 час.)",0]
[38,"Математика (96 час.)",23,5,15,1,1,1]
[39,"Информатика и ИКТ (96 час.)",1,null,1]
[40,"История и обществознание (96 час.)",9,1,6,1,1]
[41,"География (96 час.)",3,1,2]
[42,"Физика (96 час.)",3,null,3]
[43,"Химия (96 час.)",0]
[44,"Биология (96 час.)",1,null,1]
[45,"ИЗО (96 час.)",0]
[46,"Музыка (96 час.)",0]
[47,"Технология (96 час.)",1,null,1]
[48,"ОБЖ (96 час.)",0]
[49,"Преподаватель-организатор основ безопасности жизнедеятельности",0]
[50,"Физ-ра (96 час.)",5,2,3]
[51,"Инструктор по физической культуре",0]
[52,"Тренер-преподаватель",0]
[53,"ОРКСЭ (96 час.)",0]
[54,"Классный час",0]
[55,"Музыкальный руководитель",1,{"$nulls":3},1]
[56,"N",8,2,2,1,1,2]
[null,null,{"$f":"SUM(C3:C58)","v":242}]
["ДОО"]
["№","Предмет","Всего","Высшая квалификационная категория","I квалификационная категория","II квалификационная категория","Без категории","N"]
[1,"Заведующий  (72 час.)",{"$f":"SUM(D62:H62)","v":20},3,10,null,4,3]
[2,"Директор ",{"$f":"SUM(D63:H63)","v":0}]
[3,"Заместитель",2,1,1]
[4,"Заместитель директора",0]
[5,"Заместитель заведующего",3,null,2,null,null,1]
[6,"Воспитатель (64 час.)",582,88,341,3,85,65]
[7,"Дошкольник",0]
[8,"Инструктор по физ.культуре (64 час.)",9,1,3,null,5]
[9,"Тренер-преподаватель",0]
[10,"Заведующий методическим кабинетом",0]
[11,"Методист (64 час.)",10,null,8,null,1,1]
[12,"Муз. руководитель  (64 час.)",36,7,20,null,4,5]
[13,"Педагог дополнительного образования",1,{"$nulls":4},1]
[14,"Педагог-организатор",0]
[15,"Педагог-психолог (64 час.)",9,1,5,null,1,2]
[16,"Преподаватель",0]
[17,"Специалист",0]
[18,"Старший специалист",0]
[19,"Старший воспитатель (64 час.)",61,26,28,null,4,3]
[20,"Учитель",0]
[21,"Учитель-дефектолог",1,1]
[22,"Учитель-дефектолог (олигофренопедагог)",0]
[23,"Учитель-дефектолог (тифлопедагог)",1,{"$nulls":3},1]
[24,"Учитель-логопед (64 час.)",20,4,14,null,2]
[25,"N",8,1,2,1,4]
[null,null,{"$f":"SUM(C62:C86)","v":763}]
["ДОД"]
["№","Предмет","Всего","Высшая квалификационная категория","I квалификационная категория","II квалификационная категория","Без категории","N"]
[1,"Директор (108 час.)",{"$f":"SUM(D90:H90)","v":0}]
[2,"Заместитель (64 час.)",{"$f":"SUM(D91:H91)","v":0}]
[3,"Заместитель директора",0]
[4,"Заведующий (64 час.)",2,{"$nulls":3},2]
[5,"Заведующий отделением",0]
[6,"Заведующий структурного подразделения",0]
[7,"Заведующий методическим кабинетом",0]
[8,"Концертмейстер (64 час.)",0]
[9,"Методист (64 час.)",3,null,1,null,1,1]
[10,"Педагог доп.образования (64 час.)",23,1,8,null,4,10]
[11,"Педагог-организатор (64 час.)",3,null,1,1,null,1]
[12,"Педагог-психолог (64 час.)",0]
[13,"Преподаватель (64 час.)",1,{"$nulls":4},1]
[14,"Преподаватель ДМШ (64 час.)",1,null,1]
[15,"Преподаватель ДХШ (64 час.)",0]
[16,"Преподаватель ДШИ",0]
[17,"Учитель",1,{"$nulls":4},1]
[18,"Воспитатель",0]
[19,"N",0]
[null,null,{"$f":"SUM(C90:C108)","v":34}]
["Районные учреждения образования",null,null,"ИМЦ, РОО"]
["№","Предмет","Всего","Высшая квалификационная категория","I квалификационная категория","II квалификационная категория","Без категории","N"]
[2,"Заместитель ",{"$f":"SUM(D112:H112)","v":0}]
[null,"Заместитель начальника",{"$f":"SUM(D113:H113)","v":0}]
[null,"Начальник",0]
[null,"Начальник отдела",0]
[3,"Педагог-психолог ",0]
[4,"Методист ",0]
[5,"Старший методист",0]
[6,"Специалист ",0]
[7,"Ведущий специалист ",0]
[null,"N",0]
[null,null,{"$f":"SUM(C112:C121)","v":0}]
["ПО"]
["№","Предмет","Всего","Высшая квалификационная категория","I квалификационная категория","II квалификационная категория","Без категории","N"]
[1,"Воспитатель (64 час.)",{"$f":"SUM(D125:H125)","v":0}]
[3,"Директор (108 час.)",{"$f":"SUM(D126:H126)","v":0}]
[4,"Заведующий (96 час.)",0]
[null,"Заведующий методическим кабинетом",1,{"$nulls":4},1]
[6,"Заведующий отделением (64 час.)",0]
[8,"Заведующий филиалом",0]
[9,"Заместитель",0]
[10,"Заместитель директора ",0]
[11,"Музыкальный руководитель",0]
[12,"Мастер производ.обучения ",0]
[13,"Методист ",0]
[16,"Педагог доп.образования (64 час.)",1,null,1]
[17,"Педагог-библиотекарь (64 час.)",0]
[18,"Педагог-организатор (64 час.)",0]
[19,"Педагог-психолог (64 час.)",0]
[21,"Преподаватель (96 час.)",6,null,3,1,null,2]
[23,"Общепроф. дисциплины (96 час.)",0]
[null,"Учитель",1,{"$nulls":4},1]
[24,"Социальный педагог (64 час.)",0]
[25,"Старший мастер",0]
[28,"Преподаватель физического воспитания",0]
[30,"N",0]
[null,null,{"$f":"SUM(C125:C146)","v":9}]
["Прочие\n (детские дома, центры психолого-медико-социального сопровождения, межшкольный учебный комбинат, вечерняя школа закрытого типа)"]
["№","Предмет","Всего","Высшая квалификационная категория","I квалификационная категория","II квалификационная категория","Без категории","N"]
[1,"Воспитатель (64 час.)",{"$f":"SUM(D150:H150)","v":0}]
[2,"Директор (108 час.)",{"$f":"SUM(D151:H151)","v":0}]
[3,"Замиститель",1,{"$nulls":3},1]
[4,"Инструктор по туду",0]
[5,"Инструктор по физической культуре",0]
[6,"Музыкальный руководитель",0]
[7,"Педагог доп.образования (64 час.)",2,null,1,null,1]
[8,"Педагог-организатор",1,null,1]
[9,"Педагог-библиотекарь (96 час.)",0]
[10,"Педагог-психолог (64 час.)",1,1]
[11,"Преподаватель",0]
[12,"Социальный педагог (72 час.)",0]
[13,"Специалист",0]
[14,"Учитель",0]
[15,"Учитель-дефектолог (196 час.)",0]
[16,"Учитель-логопед (64 час.)",2,null,2]
[17,"Методист",1,null,1]
[18,"N",0]
[null,null,{"$f":"SUM(C150:C167)","v":8}]
[null,null,1056]

{"sheet":"2.11 (766)","index":12,"n_rows":172,"n_cols":8,"rows_kept":172,"merged":[[0,0,0,7],[61,0,61,7],[89,0,89,7],[111,0,111,7],[126,0,126,5],[150,0,150,7]]}
["2.11. Иное"]
["№","Предмет","Всего","Высшая квалификационная категория","I квалификационная категория","II квалификационная категория","Без категории","N"]
[1,"Директор (108 час.)",{"$f":"SUM(D3:H3)","v":21},11,5,null,1,4]
[2,"Заместитель директора (108 час.)",26,5,9,null,8,4]
[3,"Заместитель",14,4,6,null,2,2]
[4,"Заведующий",0]
[5,"Заведующий отделением",0]
[6,"Заведующий филиалом",0]
[{"$f":"A8+1","v":7},"Начальник структурного подразделения",1,{"$nulls":3},1]
[{"$f":"A9+1","v":8},"Педагог-библиотекарь (64 час.)",51,3,7,1,11,29]
[9,"Педагог-организатор (64 час.)",10,null,6,null,1,3]
[10,"Педагог-психолог (64 час.)",5,null,2,null,2,1]
[11,"Педагог доп. образования",0]
[12,"Старший педагог дополнительного образования",8,4,2,null,2]
[13,"Социальный педагог (64 час.)",6,null,3,null,1,2]
[14,"Воспитатель",26,null,12,1,5,8]
[15,"Старший воспитатель",0]
[16,"Специалист (64 час.)",0]
[17,"Сотрудник",0]
[18,"Мастер производственного обучения",0]
[19,"Методист",0]
[20,"Преподаватель",0]
[21,"Тьютор",6,{"$nulls":3},4,2]
[22,"Учитель-дефектолог (96 час.)",3,1,1,null,null,1]
[23,"Учитель-дефектолог (олигофренопедагог)",0]
[24,"Учитель-дефектолог (сурдопедагог)",0]
[25,"Учитель-дефектолог (тифлопедагог)",0]
[26,"Учитель-логопед (64 час.)",0]
[27,"Учитель (предмет не указан)",24,3,9,1,3,8]
[28,"Начальные классы (64 час.)",6,3,2,null,null,1]
[29,"Рус.яз. и лит-ра (96 час.)",1,1]
[30,"Тат.яз и лит (96 час.)",8,1,6,1]
[31,"Родной язык и литература",1,null,1]
[32,"Марийский язык 196 час.)",0]
[33,"Чувашский язык (96 час.)",0]
[34,"Удм. язык (96 час.)",0]
[35,"Иностранный язык",5,null,5]
[36,"Анг.яз. (96 час.)",0]
[37,"Франц.яз. (96 час.)",0]
[38,"Немец.яз. (96 час.)",0]
[39,"Математика (96 час.)",1,null,1]
[40,"Информатика и ИКТ (96 час.)",1,null,1]
[41,"История и обществознание (96 час.)",3,null,1,null,null,2]
[42,"География (96 час.)",0]
[43,"Физика (96 час.)",3,1,2]
[44,"Химия (96 час.)",1,1]
[45,"Биология (96 час.)",1,{"$nulls":3},1]
[46,"Искусство",4,3,1]
[47,"ИЗО (96 час.)",0]
[48,"Музыка (96 час.)",0]
[49,"Технология (96 час.)",3,null,3]
[50,"ОБЖ (96 час.)",0]
[51,"Преподаватель-организатор основ безопасности жизнедеятельности",2,null,1,null,null,1]
[52,"Физ-ра (96 час.)",3,1,2]
[53,"Инструктор по физической культуре",0]
[54,"Тренер-преподаватель",0]
[55,"ОРКСЭ (96 час.)",0]
[56,"Классный час",0]
[57,"Музыкальный руководитель",2,2]
[58,"N",23,7,11,null,1,4]
[null,null,{"$f":"SUM(C3:C60)","v":269}]
["ДОО"]
["№","Предмет","Всего","Высшая квалификационная категория","I квалификационная категория","II квалификационная категория","Без категории","N"]
[1,"Заведующий  (72 час.)",{"$f":"SUM(D64:H64)","v":67},5,21,1,11,29]
[2,"Директор ",{"$f":"SUM(D65:H65)","v":1},null,1]
[3,"Заместитель",1,{"$nulls":4},1]
[4,"Заместитель директора",0]
[5,"Заместитель заведующего",2,1,{"$nulls":3},1]
[6,"Воспитатель (64 час.)",165,11,110,1,25,18]
[7,"Дошкольник",0]
[8,"Инструктор по физ.культуре (64 час.)",25,4,12,null,5,4]
[9,"Тренер-преподаватель",0]
[10,"Заведующий методическим кабинетом",0]
[11,"Методист (64 час.)",0]
[12,"Муз. руководитель  (64 час.)",44,6,29,1,6,2]
[13,"Педагог дополнительного образования",0]
[14,"Педагог-организатор",0]
[15,"Педагог-психолог (64 час.)",2,null,2]
[16,"Преподаватель",0]
[17,"Специалист",0]
[18,"Старший специалист",0]
[19,"Старший воспитатель (64 час.)",5,1,2,null,null,2]
[20,"Учитель",1,{"$nulls":3},1]
[21,"Учитель-дефектолог",0]
[22,"Учитель-дефектолог (олигофренопедагог)",0]
[23,"Учитель-дефектолог (тифлопедагог)",0]
[24,"Учитель-логопед (64 час.)",18,4,13,null,1]
[25,"N",2,1,null,null,1]
[null,null,{"$f":"SUM(C64:C88)","v":333}]
["ДОД"]
["№","Предмет","Всего","Высшая квалификационная категория","I квалификационная категория","II квалификационная категория","Без категории","N"]
[1,"Директор (108 час.)",{"$f":"SUM(D92:H92)","v":6},2,1,null,1,2]
[2,"Заместитель (64 час.)",{"$f":"SUM(D93:H93)","v":4},null,2,null,null,2]
[3,"Заместитель директора",5,null,2,null,1,2]
[4,"Заведующий (64 час.)",2,1,1]
[5,"Заведующий отделением",2,null,2]
[6,"Заведующий структурного подразделения",2,null,1,null,null,1]
[7,"Заведующий методическим кабинетом",2,1,null,null,1]
[8,"Концертмейстер (64 час.)",5,1,4]
[9,"Методист (64 час.)",5,null,2,null,1,2]
[10,"Педагог доп.образования (64 час.)",35,8,15,null,2,10]
[11,"Педагог-организатор (64 час.)",2,null,1,null,null,1]
[12,"Педагог-психолог (64 час.)",0]
[13,"Преподаватель (64 час.)",4,2,1,null,1]
[14,"Преподаватель ДМШ (64 час.)",3,3]
[15,"Преподаватель ДХШ (64 час.)",0]
[16,"Преподаватель ДШИ",5,1,4]
[17,"Учитель",0]
[18,"Тренер-преподаватель",0]
[19,"N",0]
[null,null,{"$f":"SUM(C92:C110)","v":82}]
["Районные учреждения образования",null,null,"ИМЦ, РОО"]
["№","Предмет","Всего","Высшая квалификационная категория","I квалификационная категория","II квалификационная категория","Без категории","N"]
[1,"Директор",{"$f":"SUM(D114:H114)","v":1},1]
[{"$f":"A114+1","v":2},"Заместитель ",{"$f":"SUM(D115:H115)","v":1},{"$nulls":4},1]
[{"$f":"A115+1","v":3},"Заместитель начальника",{"$f":"SUM(D116:H116)","v":2},{"$nulls":4},2]
[4,"Начальник",1,{"$nulls":4},1]
[5,"Начальник управления",1,{"$nulls":4},1]
[6,"Начальник отдела",0]
[7,"Педагог-психолог ",1,{"$nulls":4},1]
[8,"Методист ",19,7,8,null,2,2]
[9,"Старший методист",3,2,1]
[10,"Специалист ",1,null,1]
[11,"Ведущий специалист ",0]
[12,"N",1,1]
[null,null,{"$f":"SUM(C114:C125)","v":31}]
["ПО"]
["№","Предмет","Всего","Высшая квалификационная категория","I квалификационная категория","II квалификационная категория","Без категории","N"]
[1,"Воспитатель (64 час.)",{"$f":"SUM(D129:H129)","v":0}]
[{"$f":"A129+1","v":2},"Директор (108 час.)",{"$f":"SUM(D130:H130)","v":7},1,2,null,null,4]
[{"$f":"A130+1","v":3},"Заведующий (96 час.)",0]
[4,"Заведующий методическим кабинетом",0]
[5,"Заведующий отделением (64 час.)",1,null,1]
[6,"Заведующий филиалом",0]
[7,"Заместитель",1,{"$nulls":4},1]
[8,"Заместитель директора ",2,{"$nulls":3},1,1]
[9,"Музыкальный руководитель",0]
[10,"Мастер производ.обучения ",6,1,1,1,1,2]
[11,"Методист ",1,{"$nulls":4},1]
[12,"Педагог доп.образования (64 час.)",0]
[13,"Педагог-библиотекарь (64 час.)",0]
[14,"Педагог-организатор (64 час.)",1,{"$nulls":4},1]
[15,"Педагог-психолог (64 час.)",2,1,{"$nulls":3},1]
[16,"Преподаватель (96 час.)",10,3,1,1,3,2]
[17,"Общепроф. дисциплины (96 час.)",0]
[18,"Учитель",0]
[19,"Социальный педагог (64 час.)",1,{"$nulls":4},1]
[20,"Старший мастер",0]
[21,"N",1,{"$nulls":3},1]
[null,null,{"$f":"SUM(C129:C149)","v":33}]
["Прочие\n (детские дома, центры психолого-медико-социального сопровождения, межшкольный учебный комбинат, вечерняя школа закрытого типа)"]
["№","Предмет","Всего","Высшая квалификационная категория","I квалификационная категория","II квалификационная категория","Без категории","N"]
[1,"Воспитатель (64 час.)",{"$f":"SUM(D153:H153)","v":2},{"$nulls":4},2]
[2,"Директор (108 час.)",{"$f":"SUM(D154:H154)","v":1},null,1]
[3,"Замиститель",1,{"$nulls":4},1]
[4,"Инструктор по туду",0]
[5,"Инструктор по физической культуре",0]
[6,"Музыкальный руководитель",0]
[7,"Педагог доп.образования (64 час.)",2,null,2]
[8,"Педагог-организатор",1,{"$nulls":3},1]
[9,"Педагог-библиотекарь (96 час.)",0]
[10,"Педагог-психолог (64 час.)",6,null,2,null,2,2]
[11,"Преподаватель",0]
[12,"Социальный педагог (72 час.)",4,null,2,null,1,1]
[13,"Специалист",0]
[14,"Учитель",0]
[15,"Учитель-дефектолог (196 час.)",0]
[16,"Учитель-логопед (64 час.)",0]
[17,"Методист",1,{"$nulls":3},1]
[18,"N",0]
[null,null,{"$f":"SUM(C153:C170)","v":18}]
[null,null,766]

{"sheet":"Иное","index":13,"n_rows":579,"n_cols":2,"rows_kept":579}
["Значение поля \"иное\"","кол-во"]
["\"Инновационные методы преподавания эстрадного вокала\"",1]
["\"Инновационные подходы к формированию эстетической культуры старших дошкольников в процессе художественной деятельности (ФГОС ДО)\"",1]
["\"Ключевые направления профессионального развития руководителя структурного подразделения учреждения дополнительного образования: предметное, методическое, психолого-педагогическое, коммуникативное\"",3]
["\"Программа ПК, которая формирует у воспитателя навыки организации волонтёрского(добровольческого) движения детей дошкольного возраста\"",1]
["\"Психолого-педагогические особенности и направления интегративной образовательной деятельности детей дошкольного возраста в рамках реализации ФГОС ДО\"",4]
["\"Совершенствование методической компетентности заместителя директора по учебно-воспитательной работе учреждения дополнительного образования\"",1]
["\"Современные приемы и методы работы музыкального руководителя\"",1]
["\"управление в дошкольной образовательной организации в условиях реализации ФГОС ДО и внедрение профессиональных стандартов\"",1]
["\"Формирование у детей младшего дошкольного возраста основ речевой моторики посредством использования пальчиковых игр\"",1]
["\"Эффективный руководитель в условиях гендерного обучения \".",1]
["«Актуальные проблемы психологической поддержки детей и подростков с учетом концепции развития психологической службы в системе образования в Российской Федерации на период до 2025 года»",1]
["«Методы и технологии в преподавании учебных дисциплин «Родной язык» и «Родная литература» в соответствии с ФГОС»",1]
["«Организация игровой деятельности детей в соответствии с ФГОС ДО»",1]
["«Профессиональный стандарт педагога»",1]
["«Психолого-педагогические основы профессионального обучения в условиях реализации новых ФГОС и профессиональных стандартов»",1]
["«Совершенствование педагогической компетенции музыкального руководителя в ДОУ»",1]
["«Современные направления деятельности методиста, старшего воспитателя в ДОУ»",1]
["«Технология» - компьютерная графика и черчение, 3D-моделирование, прототипирование, моделирование, робототехника, технологии цифрового производства .",1]
["«Физическая культура: теория и методика преподавания в дошкольном образовании»",1]
["«Формирование речевой деятельности дошкольника на татарском языке\"",1]
["Актуальные направления профессионального развития и саморазвития современного учителя родного (татарского) языка и литературы",1]
["Безопасность дорожного движения",2]
["библиотечное дело",14]
["Библиотечное дело в средней школе",1]
["Библиотечное дело и библиография",1]
["Библиотечное дело.Любая тема",1]
["билингвальное воспитание",1]
["билингвальное или полингвальное образование для ДОУ",1]
["билингвальное образование в ДОО",1]
["Билингвальное образование в рамках ФГОС дошкольного образования",1]
["Билингвальное образование детей дошкольного возраста",1]
["Билингвальное образование дошкольников",1]
["Билингвальное развитие дошкольников",1]
["В перечне вариантов нет курсов для руководителей школ-интернатов",1]
["Внедрение стандарта педагога (для руководителя ДОО)",1]
["Вопросы связанные с реализацией предпрофессиональных программ в области музыкального искусства \"Фортепиано\" ФГТ",1]
["воспитание",2]
["воспитание обучающихся в группе продленного дня",1]
["воспитателей групп раннего возраста",1]
["воспитатель ДОУ",1]
["Воспитатель кадетской школы",1]
["Воспитатель татарской разновозрастной группе",1]
["Воспитательная деятельность",1]
["воспитательная работа",1]
["Воспитательная работа в СПО",1]
["Воспитательная работа в УДО",1]
["воспитательная работа в школах - интернатах для детей с ОВЗ",2]
["Воспитательная функция школы в современных условиях образования",1]
["воспитателю по обучению татарского языка в доу",1]
["Геодезия",2]
["Государственно -общественное управление образованием в условиях ФГОС дошкольного образования",1]
["Государственно-общественное управление школой как ресурс ее успешного развития",1]
["ГТО",1]
["декоративно-прикладное творчество",1]
["Делопроизводство на основе современных требований и в соответствии с законодательством",1]
["дети с тяжелыми нарушениями речи",1]
["дети с ФФН",1]
["Детское движение",2]
["Деятельность заведующего отделом организационно-массовой работы в системе дополнительного образования",1]
["Деятельность и функции социального педагога в школе",1]
["Деятельность концертмейстера в классе хореографии",1]
["Деятельность педагога - библиотекаря в условиях реализации ФГОС",1]
["Деятельность педагога-библиотекаря в рамках ФГОС",1]
["Деятельность педагога-библиотекаря в условиях реализации ФГОС",2]
["Дистанционная программа для специалистов служб сопровождения замещающих семей, специалистов постинтернатного сопровождения, а также для специалистов школ приемных родителей.",7]
["Дистанционная программа для специалистов служб сопровождения,служб постинтернатного сопровождения, специалистов школ приёмных родителей.",1]
["Дистанционная программа ПК для руководителей учреждений дополнительного образования",1]
["Дистанционная программа ПК, педагогов по обучению ИЗО и декоративно-прикладное искусство",1]
["Для библиотекарей",1]
["для воспитателей",1]
["для заведующих детских садов",1]
["Для заведующих ДОУ, Система менеджмента качества образовательно-воспитательного процесса дошкольных образовательных учреждений в современных условиях",1]
["для зам. директора по инновационной деятельности, с большим стажем работы",1]
["Для заместителей директора",2]
["Для педагогов допобразования",1]
["Для руководителей ДОУ",1]
["Для учителей физической культуры",1]
["Для школьных библиотекарей",1]
["ДОД, ШУС в образовательной организации",1]
["документация музыкального руководителя ДОО",1]
["ДОО региональный компонент",1]
["Дополнительная профессиональная программа повышения квалификации лиц предпенсионного возраста \"Цифровизация в дошкольном образовании\"",2]
["дополнительное образование",1]
["Дополнительное образование детей в ДМШ",1]
["дополнительное образование хореография",1]
["Дошкольное воспитание",2]
["Дошкольное образование",12]
["Дошкольное образование в условиях реализации ФГОС",2]
["Здоровьесберегающие технологии в музыкальном развитии детей ОО «Художественно-эстетическое развитие» раздел «Музыка» в рамках ФГОС ДО»",1]
["ИБЦ как ведущщее звено а работе школы 21 века",1]
["Из раздела работы с детьми ОВЗ ( нарушение слуха), работа сурдопедагога в школе-интернате по программам ФГОС ООО",1]
["Изобразительное искусство",1]
["Изобразительное искусство в дополнительном образовании",1]
["Изучение ПДД в ДОУ",1]
["Инновационная деятельность библиотекаря в условиях в условиях реализации ФГОС",1]
["инновационная деятельность в предметных областях \"Искусство\" и \"Технология\"",1]
["Инновационная деятельность инструктора по физической культуре в ДОО",1]
["Инновационная деятельность музыкального руководителя в ДОО",1]
["Инновационная деятельность педагога-библиотекаря в условиях развития информационных технологии и реализации ФГОС",1]
["Инновационная деятельность учителя-логопеда ДОО в контексте ФГОС ДО",1]
["Инновационная деятельность школьного библиотекаря",1]
["Инновационные методы преподавания в организациях дополнительного образования детей",1]
["инновационные методы работ с детьми-сиротами и детьми, оставшимися без попечения родителей в условиях детского дома",1]
["Инновационные подходы в работе заместителя директора по воспитательной работе",1]
["Инновационные подходы к организации воспитательно-образовательного процесса в условиях реализации ФГОС ДО",3]
["Инновационные подходы к организации социально-личностного развития детей дошкольного возраста в соответствии с ФГОС.",4]
["Инновационные подходы к организации учебного процесса в учреждениях дополнительного образования",1]
["Инновационные практики в ДО",1]
["Инновационные технологии в воспитательной сфере ОУ (для заместителей директоров по воспитательной работе)",1]
["Инновационные технологии в воспитательной сфере ОУ (для заместителей директоров по ВР)",1]
["Инновационные технологии в музыкальном образовании",1]
["Инновационные технологии по художественно-эстетическому воспитанию детей дошкольного возраста",2]
["Инновационные технологии преподавания родного языка в СПО",1]
["Инновационные формы и методы в работе школьной библиотеки в условиях ФГОС",1]
["Инновационные формы и методы воспитания, обучения детей сирот и детей, оставшихся без попечения родителей в условия детского дома",5]
["инновационные формы и методы работы",1]
["иное",1]
["иностранный язык",1]
["Интеграция двигательной,игровой и познавательно-исследовательской деятельности на физ.занятиях в ДОУ",1]
["Интерактивные технологии обучения для детей дошкольного возраста",1]
["Информационно-библиотечная культура",1]
["Информационно-библиотечная среда для зав.библиотекой или педагог-библиотекарь",1]
["Информационное и библиотечное обслуживание учащихся в школьной библиотеке",1]
["Информационные технологии в профессиональной деятельности",1]
["Использование инновационных технологий в дошкольном образовании",1]
["Использование медиатехнологий, видео и фоторедакторов для создания обучающих материалов",1]
["как руководитель организации",1]
["Компетентность социального педагога",1]
["Комплексно-научно методический подход к повышению профессиональной компетентности педагогов в области физическое воспитание.",1]
["Комплексный подход к организации деятельности в дошкольном образовательном учреждении в современных условиях",1]
["Комптентность воспитателя в реализации ФГОС ДОО",3]
["концертмейстерское мастерство",1]
["Коррекция звукопроизношения при сложной дислалии и дизартрии в соответствии с требованиями ФГОС.",1]
["КПК для учителей-логопедов",1]
["КПК для учителя-логопеда",1]
["КПК Правил безопасного дорожного движения",1]
["Краеведение, музейная деятельность",1]
["Курс для заведующих ДОУ, Современные подходы в управлении качеством дошкольного образования в условиях реализации ФГОС",1]
["Курс повышение квалификации \"Особенности деятельности музыкального руководителя ДОУ в соответствии с ФГОС дошкольного образования\"",1]
["Курсы для библиотекарей",1]
["Курсы для воспитателей ДОУ,для совершенствования компетентности воспитателей",1]
["курсы для воспитателей школ-интернатов для одаренных детей (психолого-педагогическое сопровождение одаренных детей)",3]
["курсы для заведующих детским садом",1]
["курсы для заведующих ДОО",1]
["курсы для заведующих ДОУ",1]
["курсы для заместителя директора по учебной работе",1]
["Курсы для методистов курирующий информатика и ИКТ",1]
["курсы для методистов, курирующих вопрос качество образования",1]
["Курсы для методистов, курирующих преподавание татарского языка и литературы",1]
["курсы для музыкальных руководителей",1]
["курсы для педагогов дополнительного образования",1]
["курсы для руководителей ДОУ",1]
["Курсы для руководителей организаций дополнительного образования",2]
["Курсы для руководителей профессиональных образовательных учреждений",1]
["курсы для школьных библиотекарей",1]
["курсы ПК для заместителей директора",1]
["курсы ПК для заместителей директора по воспитательной работе",1]
["Курсы ПК для инструкторов по физической культуре",1]
["курсы по астрономии",1]
["курсы повышения для методистов СПО",1]
["курсы повышения для педагогов ДМШ или ДШИ",1]
["Курсы повышения для руководителей образовательных организации СПО",1]
["Курсы повышения квалификации воспитателей ДОУ \"Социально-нравственное воспитание дошкольников средствами художественной литературы\"",2]
["Курсы повышения квалификации для заведующих ДОУ",1]
["Курсы повышения квалификации для зам. директора по учебной работе",1]
["Курсы повышения квалификации для заместителей директоров по административно-хозяйственной работе",1]
["Курсы повышения квалификации для инструкторов по физической культуре ДОО",2]
["Курсы повышения квалификации для методистов районной методической службы по воспитательной работе",1]
["курсы Повышения Квалификации для руководителей дошкольных образовательных учреждений. Стратегия развития МБДОУ в условиях полилингвального образования",1]
["Курсы повышения квалификации для учителей музыки и музыкальных руководителей детских садов",1]
["Курсы повышения квалификации как заместитель директора по воспитательной работе",1]
["Курсы повышения квалификации музыкальных работников ДОУ по направлению \"Музыкальное восприятие детей на занятиях музыки\" по ФГОС",1]
["курсы повышения квалификации работников дополнительного образования изо -деятельность",1]
["Курсы повышения квалификации учителя-логопеда ДОО",1]
["Курсы руководителей учреждений дополнительного образования",1]
["математика",1]
["менеджмент в образовательной организации",1]
["Менеджмент и управление",1]
["Методика обучения и воспитания в области дошкольного образования в условиях реализации ФГОС",1]
["Методика преподавания английского языка в соответствии с ФГОС и немецкого языка как второго иностранного",1]
["методист дополнительного образования в СПО",1]
["методическая поддержка учителей по повышению качества образования",1]
["Методическое обеспечение деятельности педагога-организатора",1]
["Методическое сопровождение дошкольного образования в рамках ФГОС ДОО",1]
["Методическое сопровождение профессионального роста педагога. Профессиональный стандарт педагога.",1]
["методическое сопровождение ФГОС среднего общего образования",1]
["Методы и технологии в преподавании учебных дисциплин \"Родной язык\" и \"Родная литература\" в соответствии в ФГОС",1]
["Методы и технологии в преподавании учебных дисциплин \"Родной язык\" и \"Родная литература\" в соответствии с ФГОС",2]
["Методы и технологии обучения иностранным языкам и системно-деятельностный подход в педагогике в условиях реализации ФГОС Артикул: 1151",1]
["Мне нужно направление курсов для заместителя директора по информационным технологиям",1]
["Мне нужны курсы повышения квалификации как заведующей школьной библиотекой",1]
["Модель управления процессом внедрения профессионального стандарта педагога как условие совершенствования качества образования в дошкольных образовательных организациях",1]
["музыка",1]
["Музыкальное воспитание",1]
["Музыкальное воспитание в ДОО",2]
["музыкальное воспитание в ДОУ",1]
["Музыкальное воспитание в ДОУ.",1]
["музыкальное воспитание детей дошкольного возраста",1]
["Музыкальное образование детей дошкольного возраста",1]
["Музыкальное развитие детей в ДОУ",2]
["Музыкальное развитие детей дошкольного возраста",1]
["МУЗЫКАЛЬНОЕ РАЗВИТИЕ ДЕТЕЙ ДОШКОЛЬНОГО ВОЗРАСТА В УСЛОВИЯХ РЕАЛИЗАЦИИ ФГОС ДО",1]
["Музыкальный руководитель дошкольной образовательной организации в условиях реализации ФГОС ДО.",1]
["навыки работы по обучению английского языка в ДОУ",1]
["Направление - Физика",1]
["направление: художественно-эстетическое развитие дошкольников",1]
["Нейропсихология: методы диагностики и коррекции",1]
["необходимы курсы для музыкальных руководителей ДОУ",1]
["новшества в преподавании английского языка детям дошкольного возраста",1]
["Новые возможности развития информационного пространства в начальной школе, интерактивные образовательные ресурсы",1]
["Новые подходы к управлению общеобразовательной организацией в условиях реализации ФГОС",1]
["Новые технологии в обучении французского языка.",1]
["Нормативно - правовая база заместителя директора по воспитательной работе в сельской школе",1]
["Нормативно-правовое обеспечение руководителя ДОО",1]
["Обучение английскому языку детей дошкольного возраста",2]
["Обучение детей в ДОУ БДД",1]
["обучение детей ДОУ ПДД",1]
["Обучение детей дошкольного возраста ПДД.",1]
["Обучение дошкольников навыкам безопасного поведения на дорогах",1]
["Обучение нод по УМК воспитателя по татарскому языку",1]
["Обучение русскоязычных детей родному(татарскому) языку",1]
["ОВЗ",2]
["Организация библиотечного дела в условиях перехода ФГОСТ СОО",1]
["Организация внутришкольного контроля",1]
["Организация и контроль качества образования деятельности в ДОО",1]
["Организация и контроль качества образовательной деятельности в ДОО",1]
["Организация и содержание работы по профилактике детского дорожно - транспортного травматизма в ДОУ",1]
["Организация и содержание работы по профилактике детского дорожно-транспортного травматизма в ДОУ",1]
["организация контроля и мониторинга ОУ",1]
["Организация образовательного процесса в ДОО в условиях реализации ФГОС",5]
["организация образовательного процесса с учетом ФГОС ДО",2]
["Организация отдыха и оздоровления детей.",1]
["Организация работы (составление рабочей программы, СИПР,) по реализации АООП для детей с интеллектуальными нарушениями 2 вариант учебного плана.",1]
["организация работы муниципальной методической службы",1]
["Организация работы социального педагога в условиях реализации ФГОС",1]
["Основные направления деятельности заместителя директора по ВР образовательной организации в условиях реализации ФГОС",1]
["Основные направления деятельности заместителя директора по учебно-воспитательной работе",1]
["Основные направления деятельности старшего воспитателя в реализации ФГОС ДО",1]
["оСНОВНЫЕ НАПРАВЛЕНИЯ МОДЕРНИЗАЦИИ ОРГАНИЗАЦИОННО-УПРАВЛЕНЧЕСКИХ МЕХАНИЗСОВ СИСТЕМЫ ДОПОЛНИТЕЛТНОГО ОБРАЗОВАНИЯ ДЕТЕЙ",1]
["Особенности организации демонстрационного экзамена как инструмента государственной итоговой аттестации в учреждении среднего профессионального образования",3]
["Особенности организации образовательного процесса в ДОО в условиях реализации ФГОС",1]
["Особенности организации образовательного процесса в условиях реализации ФГОС",1]
["Оценка качества дошкольного образования",2]
["оценка качества образования",1]
["Пальчиковые игры для развития мелкой моторики",1]
["Патриотическое воспитание детей дошкольного возраста",1]
["ПДО по направлению \"хореография\"",1]
["педагогика дополнительного образования",1]
["Педагогика дополнительного образования. Хореография.",1]
["Педагогика здоровья и здоровьесберегающие технологии",1]
["Педагогика и психология дошкольного образования в рамках реализации ФГОС",1]
["педагогика и психология дошкольного образования в рамках реализации ФГОС ДО",4]
["педагогические основы деятельности музыкальных руководителей ДОО",1]
["Педагог-организатор",1]
["педагог-психолог",1]
["педагог-психолог в ДОО",1]
["ПК для воспитателей ДОО",1]
["ПК для заведующих ДОО",1]
["ПК для заместителей директоров по учебной работе",1]
["ПК для заместителей руководителя отдела образования",1]
["ПК для методистов отдела образования",1]
["ПК для методистов отделов образования",4]
["ПК для методистов отделов образования по дошкольному воспитанию",1]
["ПК для педагогов дополнительного образования, направление горные лыжи",1]
["по направлению химия",1]
["По обучению детей ПДД",1]
["по ПДД \"Инновационные подходы в работе по изучению ПДД в условиях реализации ФГОС.",1]
["по работе методиста в учреждении дополниительного образования",1]
["Повышение квалификации в рамках реализации ФГОС",2]
["Повышение квалификации в рамках ФГОС ДОУ",1]
["Повышение квалификации заведующего ДОО",1]
["Повышение квалификации методиста Информационно-методического отдела",2]
["Повышение квалификации по должности заместителя директора, менеджмент",1]
["Повышение квалификации руководителей в рамках ФГОС ДОУ",1]
["повышение квалификации руководителя",1]
["Повышение компетентности управленческой деятельности заместителя директора школы",1]
["Повышение компетенции музыкального руководителя в условиях ФГОС ДО в работе с детьми с ограниченными возможностями здоровья",1]
["Повышение методической компетентности методистов отделов образования",1]
["повышение управленческой компетенции",1]
["Подготовка к предметным олимпиадам",1]
["Предметно развивающая среда в группах дошкольного учреждения",2]
["Преподавание ОБЖ в рамках ФГОС",1]
["преподавание родного русского языка",1]
["Программа для заместителей директора по учебно-воспитательной работе",1]
["Программа для заместителей директоров по воспитательной работе",1]
["Программа для заместителей директоров по начальному образования",1]
["Программа для педагога организатора",1]
["Программа для руководителей образовательной организации",1]
["программа для учителя-логопеда необходима",1]
["Программа курса повышения квалификации библиотекарей по компьютерной грамотности и основам дизайна.",1]
["Программа обучения детей татарскому языку в условиях реализации ФГОС ДО",1]
["Программа ПК \"Совершенствование преподавания учебного курса \"Основы религиозной культуры и светской этики\"",1]
["Программа ПК , которая формирует у воспитателя навыки обучения детей Лего конструированию и робототехники",1]
["Программа ПК ,которая формирует у учителя олигофренопедагога , дефектолога навыки обучения коррекционных классов в условиях реализации ФГОС",1]
["программа ПК БДД и пропаганде ПДД",1]
["Программа ПК в котором будут рассматриваться формы взаимодействие частного и государственного бизнеса.",1]
["Программа ПК в которую включены модули, одновременно отражающие ключевые направления профессионального развития заместителя директора по учебной работе",1]
["Программа ПК для библиотекарей",2]
["Программа ПК для воспитателей детского сада",1]
["программа ПК для воспитателя ДОО",1]
["Программа ПК для директоров школ",1]
["Программа ПК для заведующих",1]
["Программа ПК для заведующих ДОО",1]
["Программа ПК для заместителей директора по методической работе",1]
["Программа ПК для заместителей директоров по воспитательной работе",1]
["Программа ПК для заместителей директоров по учебной работе. Тема ПК в контексте современной школы и нац.проекта \"Образование\"",1]
["Программа ПК для заместителей начальников Управлений образования",1]
["Программа ПК для инструктора по физической культуре",2]
["Программа ПК для инструкторов по физической культуре в ДОУ",1]
["Программа ПК для инструкторов по физической культуре в ДОУ.",1]
["Программа ПК для методистов отделов образования",1]
["Программа ПК для методистов по национальному образованию отделов образования",1]
["Программа ПК для методистов по начальному образованию отделов образования",1]
["Программа ПК для музыкального руководителя детского сада",1]
["Программа ПК для начальников отделов образования",1]
["Программа ПК для начинающего директора школы",1]
["Программа ПК для начинающих заместителей директоров по учебно-воспитательной работе",1]
["Программа ПК для педагога дополнительного образования по совершенствованию методической компетентности в преподавании предметной области по линии музыкального искусства",1]
["Программа ПК для педагога-организатора по организации школьного ученического самоуправления, детского общественного движения",1]
["Программа ПК для педагогов - библиотекарей",1]
["Программа ПК для преподавателей вокально-хоровых дисциплин.",3]
["Программа ПК для преподавателей Детских музыкальных школ. Обновление содержания образования в рамках федеральных государственных требований",1]
["Программа ПК для преподавателей народных инструментов в ДМШ и ДШИ.",2]
["Программа ПК для преподавателей отделения духовых инструментов в музыкальной школе и школе искусств.",1]
["Программа ПК для преподавателей специальных дисциплин в СПО",1]
["Программа ПК для преподавателей хореографов, художественной направленности.",1]
["Программа ПК для преподавателей, работающих в системе дополнительного образования",1]
["Программа ПК для руководителей детских садов",2]
["Программа ПК для руководителей образовательных организаций, реализующих адаптированные основные образовательные программы",1]
["Программа ПК для руководителей ОУ СПО",1]
["Программа ПК для руководителя школы",1]
["Программа ПК для учителей начальных классов по совершенствованию компетентностей в области работы с одаренными детьми и по предмету ОРКСЭ",1]
["Программа ПК для учителей-логопедов",1]
["программа ПК для учителя музыки",1]
["программа ПК для формирования навыков работы с одаренными детьми",1]
["программа ПК которая формирует у педагога навыки обучения детей изобразительному искусству",1]
["Программа ПК направленное на изучение родного татарского языка",1]
["Программа ПК по библиотечному делу",1]
["Программа ПК по духовно-нравственному развитию, воспитанию обучающихся на уровнях основного и среднего общего образования согласно требованиям ФГОС",1]
["Программа ПК по моделированию образовательного процесса на основе деятельного подхода в условиях полилингвальной среды.",1]
["Программа ПК по направлению воспитательной работы в школе (работа с Детской общественной организацией и Школьным ученическим самоуправлением)",1]
["Программа ПК по направлению повышения эффективности управления образовательными ресурсами в системе профессионального образования",1]
["Программа ПК по олимпиадному движению, работа с одаренными детьми",1]
["Программа ПК по организации деятельности библиотекаря",1]
["Программа ПК по подготовке библиотекарей , в области цифровых технологий",1]
["Программа ПК по подготовке педагогов организатор для работы с детскими общественными организациями",1]
["Программа ПК по подготовке тьюторов в области работы с детьми с ОВЗ (РАС)",3]
["Программа ПК по подготовке тьюторов для работы с детьми с ОВЗ (РАС)",1]
["Программа ПК по подготовке школьных библиотекарей, педагогов-библиотекарей",1]
["Программа ПК по профилактике и коррекции речевых нарушений, логопедия",1]
["Программа ПК по работе в профильных (гуманитарных) классах и классах коррекционной направленности",1]
["программа ПК по совершенствованию коммуникативной компетентности у мастеров производственного обучения",1]
["Программа ПК по совершенствованию коммуникативной компетентности учителей (педагогов);",1]
["Программа ПК по совершенствованию компетентности библиотекаря",1]
["Программа ПК по совершенствованию компетентности музыкальных руководителей ДОО",1]
["Программа ПК по совершенствованию компетентности педагога Монтессори ДОО",1]
["Программа Пк по совершенствованию компетентности социального педагога.",1]
["Программа ПК по совершенствованию методической компетентности воспитателя ДОО",2]
["программа ПК по совершенствованию обучения изобразительному искусству",1]
["Программа ПК по совершенствованию педагогической компетентности воспитателей ДОУ",7]
["Программа ПК по совершенствованию педагогической компетенции музыкального руководителя в ДОО",1]
["Программа ПК по совершенствованию педагогической компетенции музыкальных руководителей в ДОО.",1]
["Программа ПК по совершенствованию предметной и методической компетентности воспитателей (педагогов)",1]
["Программа ПК по совершенствованию предметной и методической компетентности музыкального руководителя",1]
["Программа ПК по совершенствованию предметной и методической компетентности педагога по музыкальному развитию дошкольников",1]
["Программа ПК по совершенствованию предметной и методической компетентности педагога по физическому развитию",1]
["Программа ПК по совершенствованию предметной компетенции воспитателя по обучению татарского языка ДОО",1]
["Программа ПК по совершенствованию предметной компетенции учителей-логопедов ДОО",2]
["Программа ПК по совершенствованию преподавания изобразительного искусства",1]
["Программа ПК по совершенствованию психолого-педагогической компетентности преподавателей спецдисциплин",1]
["Программа ПК по совершенствованию управленческих аспектов организации работы в ДОО",1]
["Программа ПК по совершенствованию управленческой компетентности руководителя школы",1]
["Программа ПК по управлению образовательным процессом и деятельностью педагогических кадров в рамках реализации требований обновленных ФГОС (для заместителей директора по УВР ).",1]
["Программа ПК по части руководство, менеджмент",1]
["программа ПК с обучением татарского языка детей дошкольного возраста",1]
["Программа ПК совершенствующая работу с дошкольниками по ФГОС",1]
["программа ПК художественно-эстетической направленности",1]
["Программа ПК, в которую включены модули отражающие ключевые направления профессионального развития руководителя",1]
["Программа ПК, в которую включены модули, одновременно отражающие ключевые направления профессионального развития заместителей директоров, работающих в школах с ограниченными возможностями здоровья (ОВЗ);",1]
["Программа ПК, в которую включены модули, одновременно отражающие ключевые направления профессионального развития заместителя директора",1]
["Программа ПК, в которую включены модули, одновременно отражающие ключевые направления профессионального развития педагога-библиотекаря",1]
["Программа ПК, в которую включены модули, одновременно отражающие ключевые направления профессионального развития учителя (педагога): предметное, методическое, психолого-педагогическое, коммуникативное; прохождение курсов дистанционно",1]
["Программа ПК, в которую включены модули, одновременно отражающиеРеализация задач образовательной области «Познание» в ДОУ по ФГОС",1]
["Программа ПК, в которую включены модули, формирующие у руководителя ключевые направления профессионального развития.",1]
["Программа ПК, для библиотекаря",1]
["Программа ПК, для офицеров-воспитателей кадетских образовательных учреждений по совершенствованию профессионального развития воспитателя, по формированию положительного морально-психологического климата в классе",1]
["Программа ПК, для педагогов дополнительного образования по хореографии",1]
["Программа ПК, для развития у детей музыкальных способностей",1]
["Программа ПК, для руководителей дошкольных организаций",1]
["Программа ПК, которая включает модули \"Руководитель образовательной организации: правовые аспекты деятельности\"",1]
["Программа ПК, которая которая формирует у учителя (педагога) навыки работы у обучающихся научно-исследователькой, проектой деятельностью.",1]
["Программа ПК, которая развивает у заместителя директора по учебной работе в области методической работы в школе и работы с документацией.",1]
["Программа ПК, которая развивает у учителя навыки работы в музыкально-эстетическом направлении",5]
["Программа ПК, которая совершенствует воспитание в кадетских школах.",1]
["Программа ПК, которая совершенствует у педагога навыков обучения детей дошкольного возраста.",1]
["Программа ПК, которая формирует навыки педагога в области воспитания детей с ОВЗ",1]
["Программа ПК, которая формирует педагогические технологии музыкального руководителя ДОО",1]
["Программа ПК, которая формирует у воспитателя навыки обучения и воспитания детей с ограниченными возможностями здоровья (ОВЗ)",1]
["Программа ПК, которая формирует у воспитателя навыки организации волонтерского (добровольческого) движения детей дошкольного возраста",3]
["Программа ПК, которая формирует у педагога навыки в области художественно-эстетического развития применительно к работе музыкального руководителя ДОО",1]
["Программа ПК, которая формирует у педагога навыки обучения детей правилам безопасности дорожного движения.",1]
["Программа ПК, которая формирует у педагога навыки организации волонтерского (добровольческого ) движения детей дошкольного возраста.",1]
["Программа ПК, которая формирует у педагога навыки организации волонтерского (добровольческого) движения детей дошкольного возраста",3]
["Программа ПК, которая формирует у педагога навыки организации волонтерского (добровольческого) движения детей школьного возраста возраста",1]
["Программа ПК, которая формирует у педагога-организатора работу с соц. сетями.",1]
["Программа ПК, которая формирует у учителя (педагога) навыки обучения детей отнесенных к подготовительной и спец.мед группе к сдаче норм ГТО",1]
["Программа ПК, которая формирует у учителя (педагога) навыки развития у детей речевых способнстей.",1]
["Программа ПК, которая формирует у учителя навыки работы в области развития предметной области «Технология» - компьютерная графика и черчение, 3D-моделирование, прототипирование, моделирование, робототехника, технологии цифрового производст",1]
["программа ПК, музейная педагогика",1]
["программа ПК, направленная для инструкторов по физической культуре",1]
["Программа ПК, направленная на ключевые вопросы методического сопровождения учителей методистами отделов образования",1]
["Программа ПК, по совершенствованию предметной и методической компетентности мастера производственного обучения по электромонтажным работам",1]
["Программа ПК, применимая для преподавателей детских музыкальных школ",4]
["Программа ПК,которая включает все направления работы учителя начальных классов плюс обучение детей с ОВЗ.",1]
["Программа ПК,которая формирует у педагога дополнительного образования навыки в области цифровых технологий",1]
["Программа ПК,по управлению качеством интегрированного образовательного процесса в ДОО",1]
["Программа ПК. Направление по татарскому языку",1]
["Программа по обучению основ ОБЖ",1]
["программа по ПК, которая формирует у детей правила безопасного поведения",1]
["Программа по подготовке и совершенствованию хореографических навыков в процессе обучения детей,отражающее ключевые направления профессионального развития педагога:предметное,методическое.",1]
["программа по подготовке учителей музыки",1]
["Программа по совершенствованию методической компетентности мастера производственного обучения в соответствии с профессиональным стандартом",1]
["Программа по совершенствованию управленческой компетенции заместителя директора по УР",1]
["Программа по формированию восприятия музыки, понимания произведений музыкального искусства",2]
["Программа повышения квалификации библиотечных работников",1]
["Программа повышения квалификации преподавателя физической культуры и ОБЖ.",1]
["Программа подготовки тьюторов в области работы с детьми ОВЗ (РАС)",2]
["Программа подготовки тьюторов в области работы с детьми с ОВЗ (РАС).",1]
["программа, которая формирует и развивает навыки в области эстрадного вокала и эстрадного ансамбля (дополнительное образование)",1]
["Программа, которая формирует у педагога навыки экологического воспитания и обучения",1]
["Программа, по воспитанию у дошкольников культуры поведения в дорожно-транспортной среде (ПДД)",1]
["Прогрмма ПК по совершенствованию предметной компетенции учителей-логопедов в ДОО",1]
["Проектирование и развитие воспитательных систем в условиях введения и реализации ФГОС",1]
["Проектирование образовательного процесса в дошкольной образовательной организации",1]
["Профессиональная компетентность педагога ДОО в соответствии с ФГОС ДО и профессиональным стандартом 'Педагог'",1]
["Профессиональная компетентность педагога ДОО в соответствии с ФГОС ДО и профессиональным стандартом педагога",2]
["Профессиональная компетенция воспитателя по обучению татарскому языку",1]
["Профессиональная компетенция музыкального руководителя.",1]
["профессиональное развитие методиста по воспитательной работе, методиста-психолога, профориентационной работе",1]
["Профессиональное развитие педагога в условиях реализации ФГОС и профстандарта \"Педагог\"",1]
["Профессиональное развитие руководителей дошкольных образовательных организаций на основе компетентностного подхода.",1]
["Профессиональные компетенции школьного библиотекаря в условиях ФГОС",1]
["профориентационное направление с детьми -сиротами и детьми. оставшихся без попечения родителей",1]
["Профстандарт",2]
["профстандарт педагога",2]
["Психологическое сопровождение детей с ОВЗ",1]
["Психологическое сопровождение образовательного процесса.",1]
["Психологическое сопровождение учебно-воспитательного процесса",1]
["психолого-педагогическое сопровождение в соответствии ФГОС",1]
["Работа методиста по инклюзивному образованию",1]
["Работа методической службы район. Дошкольное образование.",1]
["РАБОТА МУЗЫКАЛЬНОГО РУКОВОДИТЕЛЯ С ДЕТЬМИ С ОНР И ТНР (ЗАИКАНИЕ)",1]
["работа с одаренными детьми",1]
["Работа с одаренными детьми в ДОО в соответствии с требованиями ФГОС ДОО.",1]
["Развитие коммуникативных навыков у детей дошкольного возраста",1]
["Развитие начальных экологических представлений по средствам проектной деятельности в условиях ДОУ",1]
["Развитие речевой активности у детей раннего возраста",1]
["Развитие системы работы ДОУ в новых условиях: социальное партнерство ДОУ с родителями как ресурс социокультурного развития личности ребенка",1]
["Разработка авторских программ и проектов в соответствии с ФГОС дошкольного образования",1]
["Реализация требований безопасности и жизнедеятельности в образовательном процессе колледжа",1]
["Реализация ФГОС в ДОУ",1]
["речевое развитие детей дошкольного возраста с учетом ФГОС ДО",1]
["родной язык и литература",2]
["Роль двигательной активности в жизни ребенка",1]
["Роль методической службы в развитии детского движения",1]
["Руководство ДОУ в современных условиях",1]
["руководство дошколбной образовательной организаией",1]
["руководство дошкольной организацией",1]
["руководство и менеджмент",1]
["Руководство мониторингом образования в основной школе при реализации ФГОС ДО, НОО, ООО",1]
["Руководство проектной деятельностью в лицее",1]
["Семьеведение",1]
["СЕНСОРНОЕ РАЗВИТИЯ ДЕТЕЙ МЛАДШЕГО ДОШКОЛЬНОГО ВОЗРАСТА",1]
["Совершенствование образовательной деятельности в рамках ФГОС ДО",1]
["Совершенствование профессиональной деятельности заместителя директора по воспитательной работе в условиях реализации ФГОС",1]
["Совершенствование профессиональных компетенций воспитателя в рамках реализации ФГОС ДО",1]
["Совершенствование профессиональных компетенций воспитателя в условиях ФГОС ДО",1]
["совершенствование профессиональных компетенций музыкальных руководителей дошкольных образовательных организаций в условиях реализации инновационных технологий.",1]
["Совершенствование профессиональных компетенций педагога ДОО в области инклюзивного образования",2]
["Совершенствование процесса обучения учебному предмету «Биология» в условиях реализации ФГОС основного общего образования",1]
["Совершенствование форм и методов преподавания технологии",1]
["Современные аспекты физического воспитания дошкольников с ОВЗ в рамках реализации ФГОС ДО",1]
["Современные образовательные технологии в дошкольном образовании",1]
["Современные образовательные технологии в дошкольном образовании условиях реализации ФГОС",2]
["современные образовательные технологии обучение детей дошкольного возраста безопасности поведение на дорогах .",1]
["СОВРЕМЕННЫЕ ОБРАЗОВАТЕЛЬНЫЕ ТЕХНОЛОГИИ ОБУЧЕНИЯ ДЕТЕЙ ДОШКОЛЬНОГО ВОЗРАСТА ПРАВИЛАМ БЕЗОПАСНОГО ПОВЕДЕНИЯ НА ДОРОГАХ",1]
["Современные подходы в обучении преподавателя дополнительного образования",1]
["Современные подходы в управлении качеством дошкольного образования в условиях реализации ФГОС ДО",1]
["Современные подходы в управлении качеством дошкольного образования в условиях реализации ФГОС ДОУ",1]
["Современные подходы в управлении качеством среднего профессионального образования",1]
["Современные подходы и технологии к занятиям по физической культуре в ДОУ в условиях реализации ФГОС",1]
["Современные подходы и технологии применения адаптивной физической культуры в работе с детьми дошкольного возраста",1]
["Современные подходы к воспитательной работе",1]
["Современные подходы к обучению дошкольников навыкам безопасного поведения на дороге",1]
["Современные подходы к организации инклюзивного образования в условиях реализации ФГОС ДО",2]
["Современные подходы к организации работы воспитателя дошкольной образовательной организации в условиях реализации ФГОС.",2]
["Современные подходы к преподаванию вокального искусства",1]
["Современные подходы к содержанию и организации образовательно-воспитательного процесса в условиях введения ФГОС",3]
["Современные тенденции совершенствования воспитательной работы в школе",1]
["Современные технлогии социльной работы в различных сферах жизнедеятельности",1]
["Современные технологии в музыкальном воспитании дошкольников",1]
["Современные технологии в управлении ДОУ.",1]
["современные технологии дошкольного образования в условиях реализации ФГОС ДО",1]
["Современные технологии управления образовательной организацией в условиях модернизации образования",1]
["Современные технологии управления образовательной организацией дополнительного образования детей и взрослых",1]
["Современные технологии управления отделением колледжа в условиях модернизации образования",1]
["Современный образовательный менеджмент в условиях введения профессионального стандарта «Педагог»",1]
["Современный урок татарского языка и литературы для татароязычных учащихся в условиях ФГОС ОО",1]
["Содержание и методы работы учителя-логопеда дошкольных образовательных организаций в условиях реализации ФГОС дошкольного образования",1]
["Содержание и технологии организации педагогического руководства в детском общественном движении.",1]
["Социальная педагогика",1]
["Социально-психологическое сопровождение детей-сирот с ОВЗ.",1]
["старший воспитатель ДОУ",1]
["татарский язык",1]
["Творческое направление",1]
["Теория и методика преподавания обществознания по ФГОС в общеобразовательной организации.",1]
["Теория и практика менеджмента образовательной организации",1]
["Трудовые отношения и кадровый документооборот в образовательной организации",1]
["Умение преподавать свой предмет по ФГОС в 10-11 классах, умение организовывать проектную деятельность учащихся.",1]
["управление ДОО",1]
["Управление ДОУ",1]
["Управление ДОУ в условиях ФГОС ДО",1]
["Управление дошкольной образовательной организацией в современных условиях",1]
["Управление дошкольной организацией в рамках ФГОС",1]
["управление дошкольным образовательным учреждением",1]
["Управление и менеджмент в ДОО",1]
["Управление качеством дошкольного образования в соответствии с ФГОС ДО",1]
["Управление качеством дошкольного образования в условиях внедрения ФГОС ДО",1]
["Управление методической работой образовательных организаций муниципального района в условиях реализации ФГОС ОО",1]
["Управление методической работой ОО муниципального района в условиях реализации ФГОС ОО",1]
["Управление образовательной организацией",1]
["Управление образовательной организацией в условиях реализации ФГОС ООО, СОО, обучения детей с ОВЗ",1]
["Управление ОО в рамках реализации адаптированных образовательных программ.",1]
["Управление персоналом",1]
["Управление проектированием и реализацией образовательных программ в школе: изменения ФГОС",1]
["Управление проектированием и реализацией основной образовательной программы ФГОС среднего общего образования",1]
["Управление развитием дошкольного образования в условиях реализации ФГОС ДО",1]
["Управление развитием дошкольного образовательного учреждения",1]
["Управление развитием образовательного учреждения",1]
["Управление развитием образовательных организации в условиях модернизации образования",2]
["Управление системой дошкольного образования",2]
["управление школой",2]
["Управленческая деятельность",2]
["Учитель родного (мордовского) языка и литература.",1]
["учитель технологии",1]
["фгос до в дошкольном образовании",1]
["ФГОС ДОУ",1]
["физическая культура",1]
["Физическая культура в детском саду",2]
["физическая культура и спорт",1]
["Физическое развитие в ДОУ в соответствии ФГОС ДО: инновационный подход к физкультуре",2]
["Физическое развитие в ДОУ.",1]
["Физическое развитие детей в соответствии с ФГОС ДО",1]
["Физическое развитие детей дошкольного возраста",2]
["физкультурно спортивное направление",2]
["ФИЗКУЛЬТУРНО-СПОРТИВНОЕ НАПРАВЛЕНИЕ",1]
["Физкультурно-спортивное направление профессионального развития педагога: предметное, методическое, психолого-педагогическое,коммуникативное.",1]
["физкультурно-спортивное направление.",1]
["Физкультурно-спортивное направление. Баскетбол.",1]
["Физкультурно-спортивное направление. Модули, одновременно отражающие ключевые направления профессионального развития педагога: предметное, методическое, психолого-педагогическое, коммуникативное.",4]
["Формирование образовательной среды в начальной школе в свете новых ФГОС",1]
["хореография",2]
["хотелось бы направления связанные с физической культурой в ДОУ",1]
["хотелось бы, чтобы тематика курса была связана с кадрами и аттестацией педагогических работников",1]
["Художественно-эстетическое воспитание(Музыка)",1]
["Художественно-эстетическое развитие дошкольников",1]
["Цифровизация в дошкольном образовании",1]
["Цифровые технологии в обучении детей правилам безопасного поведения на дорогах",2]
["Школьная библиотека",1]
["Школьная библиотека как информационно-библиотечный центр",1]
["Эмоционально коммуникативное развитие дошкольника в работе психолога",1]
["эффективное управление ПОО в условиях модернизации системы СПО в РТ",1]
["Эффективные формы взаимодействия внутри педагогического коллектива ДОО как фактор инновационного развития образовательной организации",1]
["Эффективный менеджмент в образовании",2]
["являюсь заместителем директора по АХР, нужны курсы по закупкам",1]
["Языковое обучение дошкольников в условиях билингвализма",1]
["(пусто)",53]
["Общий итог",{"$f":"SUM(B2:B578)","v":766}]